Workbook

Sheet Front page
B12: Navigation
B14: Main interface and output
E16: Gives an introduction to the model
E19: Offers the user a variety of options for customizing input parameters and main results
E22: Offers a variety of plots of sensitivity runs
E25: A full financial model based annual figures including cash flows, profit loss statement and balance sheet
B28: Input data
E30: Annual gross energy production and choice of technology
E33: CAPEX and OPEX estimates and tax rates differentiable by CAPEX categories
E36: Time series of exchange rate
E39: Time series of projected inflation
B42: Auxilliary input
E44: Definition of sensitivity runs and output from sensitivity runs
B47: Data transfomation sheets
E49: Tables with results from sensitivity anyses, organized for use in charts
E52: Utility sheet which transform inputs for use in financial modelling. Sensitivity parameters are also included here

Sheet Introduction
B1: =MID(CELL("filename",A1),1+FIND("]",CELL("filename",A1)),99) -> Introduction
D4: Introduction to the spreadsheet/model
B12: Standards for cells
D15: Text
D16: Input data
D17: Link to other cells
D18: Formulas
D19: Tentative data
B22: Standards for sheets
D25: Light blue sheets indicate that the user can enter data or verify existing data.
D26: Dark blue sheets indicate a user interface
D27: White sheets are informational sheets for the user regarding the model.
D28: Orange sheets are the primary results.
D29: Black sheets are the secondary results.
D30: Neutral sheets are calculation sheets.
D31: Green sheets are modules with extra functionalities that can be used if desired.

Sheet User Interface
B1: =MID(CELL("filename",A1),1+FIND("]",CELL("filename",A1)),99) -> User Interface
B6: Generation technology
B8: Technology | D8: Energy Production
B9: 2 | D9: 1
B11: Dimensioning and timing
B13: Nominal capacity | C13: MW | D13: 500
B14: 1 st year of construction | C14: Year | D14: 2025
B15: Construction time | C15: Years | D15: 4
B16: Technical life | C16: Years | D16: ='Technical data'!K13 -> 27
B19: Annual variation in AEP
B21: Annual variation in AEP | C21: FALSE | D21: =IF(C21=TRUE,"Annual variation included","Annual variation excluded") -> Annual variation excluded
B24: Generation data check
B26: Net AEP after wake loss only | C26: GWh | D26: ='Technical data'!I32*Nom_cap -> 2576.43
B27: Capacity factor after wake loss only | C27: % | D27: =Capacity_factor -> 0.5878234086
B28: Net AEP after all losses | C28: GWh | D28: ='Technical data'!$P$32 -> 2344.5513
B29: Capacity factor after all losses | C29: % | D29: =Capacity_factorall -> 0.5349193018
B32: Investment expenditure
C34: Include | D34: mINR | E34: mUSD
B35: ='CAPEX & OPEX'!D10 -> DEVEX | C35: TRUE | D35: =E35*Exchangerate -> 2875.542152 | E35: ='CAPEX & OPEX'!S10*C35 -> 39.49176904
B36: ='CAPEX & OPEX'!D11 -> PM | C36: TRUE | D36: 2703.102834 | E36: ='CAPEX & OPEX'!S11*C36 -> 37.12354302
B37: ='CAPEX & OPEX'!D12 -> Foundation | C37: TRUE | D37: 6368.603487 | E37: ='CAPEX & OPEX'!S12*C37 -> 87.46434747
B38: ='CAPEX & OPEX'!D13 -> WTG | C38: TRUE | D38: 46651.82649 | E38: ='CAPEX & OPEX'!S13*C38 -> 640.7011476
B39: ='CAPEX & OPEX'!D14 -> Array cabling | C39: TRUE | D39: 10253.14868 | E39: ='CAPEX & OPEX'!S14*C39 -> 140.813439
B40: ='CAPEX & OPEX'!D15 -> Export system | C40: TRUE | D40: 18036.22063 | E40: ='CAPEX & OPEX'!S15*C40 -> 247.7036405
B41: ='CAPEX & OPEX'!D16 -> Installation | C41: TRUE | D41: 16871.0901 | E41: ='CAPEX & OPEX'!S16*C41 -> 231.7021133
B43: Total CAPEX (including VAT and duties) | D43: =E43*Exchangerate -> 103759.5344 | E43: =SUM(E35:E41) -> 1425
B46: Operational expenditure
C48: Include | D48: INR/unit | E48: USD/unit
B49: ='CAPEX & OPEX'!D22 -> USD/MWh | C49: FALSE | D49: =E49*Exchangerate -> 0 | E49: ='CAPEX & OPEX'!S22*C49 -> 0
B50: ='CAPEX & OPEX'!D23 -> USD/MWh | C50: FALSE | D50: 0 | E50: ='CAPEX & OPEX'!S23*C50 -> 0
B51: ='CAPEX & OPEX'!D24 -> USD/MWh | C51: FALSE | D51: 0 | E51: ='CAPEX & OPEX'!S24*C51 -> 0
B52: ='CAPEX & OPEX'!D25 -> USD/MW | C52: TRUE | D52: 4638233.221 | E52: ='CAPEX & OPEX'!S25*C52 -> 63700
B53: ='CAPEX & OPEX'!D26 -> USD/MW | C53: FALSE | D53: 0 | E53: ='CAPEX & OPEX'!S26*C53 -> 0
B54: ='CAPEX & OPEX'!D27 -> USD/MW | C54: FALSE | D54: 0 | E54: ='CAPEX & OPEX'!S27*C54 -> 0
B56: Total variable OPEX | E56: =SUM(E49:E51) -> 0
B57: Total fixed OPEX | D57: =E57*Exchangerate -> 4638233.221 | E57: =SUM(E52:E54) -> 63700
B60: PPA contract
B63: Indexing
C64: Include | E64: level (% p.a.)
B65: Indexing | C65: FALSE | D65: 0.03
B66: Duration of indexing (years) | D66: 15
B69: Payment schedule
C70: Include
B71: Time from delivery to payment (months) | C71: FALSE | D71: 12
B74: Curtailment
B76: Level of curtailment (% of Net AEP) | C76: FALSE | D76: 0.05
B79: Over-/underproduction
C80: Include
B81: Committed AEP (GWh) | D81: ='Technical data'!$P$28 -> 2344.5513
B82: Percentage penalty for underproduction (% of Net AEP) | C82: FALSE | D82: 0.25
B83: Percentage penalty for overproduction (% of Net AEP) | C83: FALSE | D83: 0.25
B86: Late commissioning
B88: Delay in commissioning (months) | C88: FALSE | D88: 6
B89: Probability of delay (%) | D89: 0.5
B90: Expected delay in months | D90: =D88*D89*C88 -> 0
D91: Years & | E91: Months
B92: Responding to | D92: =(Com_delay-E92)/12 -> 0 | E92: =ROUND(MOD(D90,12),0) -> 0
B95: Government incentives
B97: Tax incentives
B99: VAT | C99: FALSE | D99: =IF(C99,B99&" included",B99&" excluded") -> VAT excluded
B100: Duties | C100: FALSE | D100: =IF(C100,B100&" included",B100&" excluded") -> Duties excluded
B103: Viability gap funding
B105: =B13&" ("&C13&")" -> Nominal capacity (MW) | D105: =D13 -> 500
D107: (INR/KWh) | E107: (USD/KWh)
B108: Set LCOE target | D108: 3 | E108: =GS_Goal/Exchangerate -> 0.041201033
D110: (mINR) | E110: (mUSD)
B111: Investment subsidy | C111: FALSE | D111: 150341.5178 | E111: =D111/Exchangerate -> 2064.741946
B112: Subsidy share of CAPEX | E112: =IF(UF_Subsidy=TRUE,E111/Total_capex,"") -> 
D114: (INR/MWh) | E114: (USD/MWh)
B115: GBI | C115: FALSE | D115: 3899.352519 | E115: =D115/Exchangerate -> 53.55245061
D117: (mINR) | E117: (mUSD)
B118: Max. annual subsidy budget for GBI | D118: 27460 | E118: =D118/Exchangerate -> 377.1267887
B119: Limit GBI commitment (years) | C119: FALSE | D119: 50
B121: Find the goverment subsidy | G121: =Lists!Q9 -> Finance!K71
B122: Find the GBI | G122: =Lists!Q5 -> Results!C11
B124: Fixed subsidy levels: | G124: =Lists!Q8 -> 'User Interface'!D13
G125: =Lists!Q4 -> 'User Interface'!D111
G126: =Lists!Q12 -> 'User Interface'!D115
B128: Financing
B130: Equity financing
B132: Cost of equity | D132: 0.1
B133: Equity share | D133: 0.25 | G133: =IF(SUM(D133,D141,D146)=1,"","Financing shares do not sum to 100%") -> 
B136: Loan financing
B138: Interest during construction | D138: 0.05
B140: Senior
B141: Financing share | D141: 0.75 | G141: =G133 -> 
B142: Interest rate | D142: 0.08
B143: Loan Tenor (years) | D143: 15
B145: Subordinate
B146: Financing share | G146: =G141 -> 
B147: Interest rate | D147: 0.15
B148: Loan Tenor (years) | D148: 25
B149: Simple WACC | E149: =(D132*D133+D141*D142+D146*D147) -> 0.085
B150: Time variant WACC | E150: =Finance!E20 -> 0.0908577257
B151: Choice of WACC for NPV calculation | C151: TRUE | D151: =IF(C151,B149,B150) -> Simple WACC
B155: Exchange rate
C157: Include | D157: Percentage change
B158: Exchange rate uncertainty | C158: FALSE | D158: -0.08
B162: Cash reserves
B164: Cash Reserve (% of CAPEX) | C164: FALSE | D164: 0.1
B205: 1

Sheet Results
B1: =MID(CELL("filename",A1),1+FIND("]",CELL("filename",A1)),99) -> Results
B3: Main Results
B5: Key indicators | I5: Cost year
C6: (million INR) | D6: (million USD) | I6: ='User Interface'!D14 -> 2025
B7: =Finance!D68 -> CAPEX/MW excl. Taxes | C7: =Finance!F68 -> 207.5190688 | D7: =Finance!G68 -> 2.85
B8: =Finance!D69 -> CAPEX/MW incl. Taxes | C8: =Finance!F69 -> 207.5190688 | D8: =Finance!G69 -> 2.85
C9: (INR/KWh) | D9: (USD/KWh)
B10: =Finance!D70 -> First year OPEX/MWh | C10: =Finance!F70/1000 -> 1.202319921 | D10: =Finance!G70/1000 -> 0.01651227425
B11: =Finance!D74 -> LCoE (INR/kWh) | C11: =Finance!F74 -> 7.426543606 | D11: =Finance!G74 -> 0.1019937561
B12: CAPEX share of LCoE | C12: =Finance!F85 -> 5.521165269 | D12: =Finance!G85 -> 0.07582590415
B13: OPEX share of LCoE | C13: =Finance!F86 -> 1.905378337 | D13: =Finance!G86 -> 0.02616785192
B14: =Finance!D76 -> Simple WACC | C14: ='User Interface'!E149 -> 0.085
B15: =Finance!D81 -> Mean Net Energy production incl. Curtailment (MWh) | C15: =Finance!E81 -> 2344.5513 | D15: (MWh)
C16: (million INR) | D16: (million USD)
B17: =Finance!D82 -> Total investment subsidy | C17: =Finance!F82 -> 0 | D17: =Finance!G82 -> 0
B18: =Finance!D83 -> Average annual GBI sudsidy | C18: =Finance!F83 -> 0 | D18: =Finance!G83 -> 0
B19: =Finance!D84 -> NPV of government funding | C19: =Finance!F84 -> 0 | D19: =Finance!G84 -> 0
B23: Plots & Results
B25: Sensitivity scenarios | J25: LCOE sensitivities
B28: Running indicator | C28: =Scen -> 1 | D28: =N_scen -> 96
B29: min/max | C29: 1 | D29: 72 | K29: ="LCoE - "&'Technical data'!E$9 -> LCoE - Offshore wind Gujarat
K30: ="LCoE - "&'Technical data'!F$9 -> LCoE - Offshore wind Tamil Nadu Site B
K31: ="LCoE - "&'Technical data'!G$9 -> LCoE -
K32: ="LCoE - "&'Technical data'!H$9 -> LCoE -
B67: Decosting chart
C73: Scenario title | D73: PPA tariff | F73: Empty | G73: Filled
C74: Worst case LCOE | D74: 11.28011264 | F74: =0 -> 0 | G74: =D74 -> 11.28011264
C75: No indexing of PPA | D75: 10.34443647 | F75: =D75 -> 10.34443647 | G75: =G74-F75 -> 0.9356761677
C76: Delay in payment | D76: 9.478401638 | F76: =D76 -> 9.478401638 | G76: =F75-F76 -> 0.8660348328
C77: Energy commitment | D77: 9.06701471 | F77: 9.06701471 | G77: =F76-F77 -> 0.4113869283
C78: Curtailment | D78: 8.613663975 | F78: =D78 -> 8.613663975 | G78: 0.4533507355
C79: Chance of delays | D79: 8.437394531 | F79: 8.437394531 | G79: 0.176269444
C80: VAT | D80: 8.035613839 | F80: 8.035613839 | G80: 0.4017806919
C81: Duties | D81: 7.346507936 | F81: 7.346507936 | G81: 0.6891059026
C82: No GBI/subsidy | D82: 6.270687151 | F82: 6.270687151 | G82: 1.075820785
C83: Decosted LCOE | D83: =D82 -> 6.270687151 | F83: 0 | G83: 6.270687151
D97: Gujarat | E97: Tamil Nadu
D98: 14.04506266 | E98: 10.23458615
D99: 10.14065968 | E99: 7.161642019
D100: 9.367814944 | E100: 6.615835584
D101: 8.813266669 | E101: 6.171840668
D102: 8.372603336 | E102: 5.863248635
D103: 8.195246667 | E103: 5.743507561
D104: 7.804996826 | E104: 5.470007201
D105: 7.051738304 | E105: 4.95331447
D106: 5.139620518 | E106: 3.641709844
D107: 5.139620518 | E107: 3.641709844
B110: Subsidy overview
J112: ="Comparison of subsidy at "&ROUND(Nom_cap,1)&" MW capacity" -> Comparison of subsidy at 500 MW capacity
J113: LCOE | K113: GBI (NPV) | L113: Investment subsidy (NPV) | M113: LCOE target | N113: LCOE target | P113: LCOE no. | Q113: =COUNT($J$114:$J$154) -> 41
C114: Warning: this may take some time to run | J114: 10 | K114: -65741.74863 | L114: -60086.84757 | M114: 3 | N114: 0 | P114: LCOE row | Q114: 41
J115: 9.75 | K115: -57200.21725 | L115: -52280.03218 | M115: 3 | N115: =MAX(K114:L154) -> 275919.5069
J116: 9.5 | K116: -48658.68586 | L116: -44473.2168 | M116: 3
J117: 9.25 | K117: -40117.15447 | L117: -36666.40142 | M117: 3 | P117: INR/KWh
J118: 9 | K118: -31575.62308 | L118: -28859.58604 | M118: 3 | P118: mINR
J119: 8.75 | K119: -23034.09169 | L119: -21052.77065 | M119: 3
J120: 8.5 | K120: -14492.5603 | L120: -13245.95527 | M120: 3
J121: 8.25 | K121: -5951.028916 | L121: -5439.139889 | M121: 3
J122: 8 | K122: 2590.502472 | L122: 2367.675494 | M122: 3
J123: 7.75 | K123: 11132.03386 | L123: 10174.49088 | M123: 3
J124: 7.5 | K124: 19673.56525 | L124: 17981.30626 | M124: 3
J125: 7.25 | K125: 28215.09664 | L125: 25788.12164 | M125: 3
J126: 7 | K126: 36756.62802 | L126: 33594.93702 | M126: 3
J127: 6.75 | K127: 45298.15941 | L127: 41401.75241 | M127: 3
J128: 6.5 | K128: 53839.6908 | L128: 49208.56779 | M128: 3
J129: 6.25 | K129: 62381.22219 | L129: 57015.38317 | M129: 3
J130: 6 | K130: 70922.75358 | L130: 64822.19856 | M130: 3
J131: 5.75 | K131: 79464.28497 | L131: 72629.01394 | M131: 3
J132: 5.5 | K132: 88005.81635 | L132: 80435.82932 | M132: 3
J133: 5.25 | K133: 96547.34774 | L133: 88242.6447 | M133: 3
J134: 5 | K134: 105088.8791 | L134: 96049.46009 | M134: 3
J135: 4.75 | K135: 113630.4105 | L135: 103856.2755 | M135: 3
J136: 4.5 | K136: 122171.9419 | L136: 111663.0909 | M136: 3
J137: 4.25 | K137: 130713.4733 | L137: 119469.9062 | M137: 3
J138: 4 | K138: 139255.0047 | L138: 127276.7216 | M138: 3
J139: 3.75 | K139: 147796.5361 | L139: 135083.537 | M139: 3
J140: 3.5 | K140: 156338.0675 | L140: 142890.3524 | M140: 3
J141: 3.25 | K141: 164879.5988 | L141: 150697.1678 | M141: 3
J142: 3 | K142: 173421.1302 | L142: 158503.9831 | M142: 3
J143: 2.75 | K143: 181962.6616 | L143: 166310.7985 | M143: 3
J144: 2.5 | K144: 190504.193 | L144: 174117.6139 | M144: 3
J145: 2.25 | K145: 199045.7244 | L145: 181924.4293 | M145: 3
J146: 2 | K146: 207587.2558 | L146: 189731.2447 | M146: 3
J147: 1.75 | K147: 216128.7872 | L147: 197538.0601 | M147: 3
J148: 1.5 | K148: 224670.3186 | L148: 205344.8754 | M148: 3
J149: 1.25 | K149: 233211.85 | L149: 213151.6908 | M149: 3
J150: 1 | K150: 241753.3813 | L150: 220958.5062 | M150: 3
J151: 0.75 | K151: 250294.9127 | L151: 228765.3216 | M151: 3
J152: 0.5 | K152: 258836.4441 | L152: 236572.137 | M152: 3
J153: 0.25 | K153: 267377.9755 | L153: 244378.9524 | M153: 3
J154: 0 | K154: 275919.5069 | L154: 252185.7677 | M154: 3

Sheet Finance
B1: =MID(CELL("filename",A1),1+FIND("]",CELL("filename",A1)),99) -> Finance
D3: Calender Year | F3: =[0]!constr_start -> 2025 | G3: =F3+1 -> 2026 | H3: =G3+1 -> 2027 | I3: 2028 | J3: 2029 | K3: 2030 | L3: 2031 | M3: 2032 | N3: 2033 | O3: 2034 | P3: 2035 | Q3: 2036 | R3: 2037 | S3: 2038 | T3: 2039 | U3: 2040 | V3: 2041 | W3: 2042 | X3: 2043 | Y3: 2044 | Z3: 2045 | AA3: 2046 | AB3: 2047 | AC3: 2048 | AD3: 2049 | AE3: 2050 | AF3: 2051 | AG3: 2052 | AH3: 2053 | AI3: 2054 | AJ3: 2055 | AK3: 2056
D4: Project Phase | F4: =IF(AND(F5=1,delay_months>0)=TRUE,"Development and market",IF(F5<=0,INDEX(Phases,1),IF(F5<=T_life,INDEX(Phases,2),IF(F5<=T_life+1,INDEX(Phases,3),"")))) -> Development | G4: Development | H4: Development | I4: Development | J4: Operation: Market | K4: Operation: Market | L4: Operation: Market | M4: Operation: Market | N4: Operation: Market | O4: Operation: Market | P4: Operation: Market | Q4: Operation: Market | R4: Operation: Market | S4: Operation: Market | T4: Operation: Market | U4: Operation: Market | V4: Operation: Market | W4: Operation: Market | X4: Operation: Market | Y4: Operation: Market | Z4: Operation: Market | AA4: Operation: Market | AB4: Operation: Market | AC4: Operation: Market | AD4: Operation: Market | AE4: Operation: Market | AF4: Operation: Market | AG4: Operation: Market | AH4: Operation: Market | AI4: Operation: Market | AJ4: Operation: Market | AK4: Liquidation
D5: Model Period | F5: =IF(F3<=constr_start+constr_dur+T_life+Delay_years,ROUND(Finance!F3-(constr_start+constr_dur+Delay_years-1),0),"") -> -3 | G5: =IF(G3<=constr_start+constr_dur+T_life+Delay_years,ROUND(Finance!G3-(constr_start+constr_dur+Delay_years-1),0),"") -> -2 | H5: =IF(H3<=constr_start+constr_dur+T_life+Delay_years,ROUND(Finance!H3-(constr_start+constr_dur+Delay_years-1),0),"") -> -1 | I5: =IF(I3<=constr_start+constr_dur+T_life+Delay_years,ROUND(Finance!I3-(constr_start+constr_dur+Delay_years-1),0),"") -> 0 | J5: =IF(J3<=constr_start+constr_dur+T_life+Delay_years,ROUND(Finance!J3-(constr_start+constr_dur+Delay_years-1),0),"") -> 1 | K5: =IF(K3<=constr_start+constr_dur+T_life+Delay_years,ROUND(Finance!K3-(constr_start+constr_dur+Delay_years-1),0),"") -> 2 | L5: =IF(L3<=constr_start+constr_dur+T_life+Delay_years,ROUND(Finance!L3-(constr_start+constr_dur+Delay_years-1),0),"") -> 3 | M5: =IF(M3<=constr_start+constr_dur+T_life+Delay_years,ROUND(Finance!M3-(constr_start+constr_dur+Delay_years-1),0),"") -> 4 | N5: =IF(N3<=constr_start+constr_dur+T_life+Delay_years,ROUND(Finance!N3-(constr_start+constr_dur+Delay_years-1),0),"") -> 5 | O5: =IF(O3<=constr_start+constr_dur+T_life+Delay_years,ROUND(Finance!O3-(constr_start+constr_dur+Delay_years-1),0),"") -> 6 | P5: =IF(P3<=constr_start+constr_dur+T_life+Delay_years,ROUND(Finance!P3-(constr_start+constr_dur+Delay_years-1),0),"") -> 7 | Q5: =IF(Q3<=constr_start+constr_dur+T_life+Delay_years,ROUND(Finance!Q3-(constr_start+constr_dur+Delay_years-1),0),"") -> 8 | R5: =IF(R3<=constr_start+constr_dur+T_life+Delay_years,ROUND(Finance!R3-(constr_start+constr_dur+Delay_years-1),0),"") -> 9 | S5: =IF(S3<=constr_start+constr_dur+T_life+Delay_years,ROUND(Finance!S3-(constr_start+constr_dur+Delay_years-1),0),"") -> 10 | T5: =IF(T3<=constr_start+constr_dur+T_life+Delay_years,ROUND(Finance!T3-(constr_start+constr_dur+Delay_years-1),0),"") -> 11 | U5: =IF(U3<=constr_start+constr_dur+T_life+Delay_years,ROUND(Finance!U3-(constr_start+constr_dur+Delay_years-1),0),"") -> 12 | V5: =IF(V3<=constr_start+constr_dur+T_life+Delay_years,ROUND(Finance!V3-(constr_start+constr_dur+Delay_years-1),0),"") -> 13 | W5: =IF(W3<=constr_start+constr_dur+T_life+Delay_years,ROUND(Finance!W3-(constr_start+constr_dur+Delay_years-1),0),"") -> 14 | X5: =IF(X3<=constr_start+constr_dur+T_life+Delay_years,ROUND(Finance!X3-(constr_start+constr_dur+Delay_years-1),0),"") -> 15 | Y5: =IF(Y3<=constr_start+constr_dur+T_life+Delay_years,ROUND(Finance!Y3-(constr_start+constr_dur+Delay_years-1),0),"") -> 16 | Z5: =IF(Z3<=constr_start+constr_dur+T_life+Delay_years,ROUND(Finance!Z3-(constr_start+constr_dur+Delay_years-1),0),"") -> 17 | AA5: =IF(AA3<=constr_start+constr_dur+T_life+Delay_years,ROUND(Finance!AA3-(constr_start+constr_dur+Delay_years-1),0),"") -> 18 | AB5: =IF(AB3<=constr_start+constr_dur+T_life+Delay_years,ROUND(Finance!AB3-(constr_start+constr_dur+Delay_years-1),0),"") -> 19 | AC5: =IF(AC3<=constr_start+constr_dur+T_life+Delay_years,ROUND(Finance!AC3-(constr_start+constr_dur+Delay_years-1),0),"") -> 20 | AD5: =IF(AD3<=constr_start+constr_dur+T_life+Delay_years,ROUND(Finance!AD3-(constr_start+constr_dur+Delay_years-1),0),"") -> 21 | AE5: =IF(AE3<=constr_start+constr_dur+T_life+Delay_years,ROUND(Finance!AE3-(constr_start+constr_dur+Delay_years-1),0),"") -> 22 | AF5: =IF(AF3<=constr_start+constr_dur+T_life+Delay_years,ROUND(Finance!AF3-(constr_start+constr_dur+Delay_years-1),0),"") -> 23 | AG5: =IF(AG3<=constr_start+constr_dur+T_life+Delay_years,ROUND(Finance!AG3-(constr_start+constr_dur+Delay_years-1),0),"") -> 24 | AH5: =IF(AH3<=constr_start+constr_dur+T_life+Delay_years,ROUND(Finance!AH3-(constr_start+constr_dur+Delay_years-1),0),"") -> 25 | AI5: =IF(AI3<=constr_start+constr_dur+T_life+Delay_years,ROUND(Finance!AI3-(constr_start+constr_dur+Delay_years-1),0),"") -> 26 | AJ5: =IF(AJ3<=constr_start+constr_dur+T_life+Delay_years,ROUND(Finance!AJ3-(constr_start+constr_dur+Delay_years-1),0),"") -> 27 | AK5: =IF(AK3<=constr_start+constr_dur+T_life+Delay_years,ROUND(Finance!AK3-(constr_start+constr_dur+Delay_years-1),0),"") -> 28
D6: Project Phasing
D7: Development | F7: =IF(F$4=$D7,1,0) -> 1 | G7: =IF(G$4=$D7,1,0) -> 1 | H7: 1 | I7: 1 | J7: 0 | K7: 0 | L7: 0 | M7: 0 | N7: 0 | O7: 0 | P7: 0 | Q7: 0 | R7: 0 | S7: 0 | T7: 0 | U7: 0 | V7: 0 | W7: 0 | X7: 0 | Y7: 0 | Z7: 0 | AA7: 0 | AB7: 0 | AC7: 0 | AD7: 0 | AE7: 0 | AF7: 0 | AG7: 0 | AH7: 0 | AI7: 0 | AJ7: 0 | AK7: 0
D8: Operation: Market | F8: =IF(F$4=$D8,1,0) -> 0 | G8: 0 | H8: 0 | I8: 0 | J8: 1 | K8: 1 | L8: 1 | M8: 1 | N8: 1 | O8: 1 | P8: 1 | Q8: 1 | R8: 1 | S8: 1 | T8: 1 | U8: 1 | V8: 1 | W8: 1 | X8: 1 | Y8: 1 | Z8: 1 | AA8: 1 | AB8: 1 | AC8: 1 | AD8: 1 | AE8: 1 | AF8: 1 | AG8: 1 | AH8: 1 | AI8: 1 | AJ8: 1 | AK8: 0
D9: Liquidation | F9: =IF(F$4=$D9,1,0) -> 0 | G9: 0 | H9: 0 | I9: 0 | J9: 0 | K9: 0 | L9: 0 | M9: 0 | N9: 0 | O9: 0 | P9: 0 | Q9: 0 | R9: 0 | S9: 0 | T9: 0 | U9: 0 | V9: 0 | W9: 0 | X9: 0 | Y9: 0 | Z9: 0 | AA9: 0 | AB9: 0 | AC9: 0 | AD9: 0 | AE9: 0 | AF9: 0 | AG9: 0 | AH9: 0 | AI9: 0 | AJ9: 0 | AK9: 1
D10: Development and market | F10: =IF(F$4=$D10,1,0) -> 0 | G10: 0 | H10: 0 | I10: 0 | J10: 0 | K10: 0 | L10: 0 | M10: 0 | N10: 0 | O10: 0 | P10: 0 | Q10: 0 | R10: 0 | S10: 0 | T10: 0 | U10: 0 | V10: 0 | W10: 0 | X10: 0 | Y10: 0 | Z10: 0 | AA10: 0 | AB10: 0 | AC10: 0 | AD10: 0 | AE10: 0 | AF10: 0 | AG10: 0 | AH10: 0 | AI10: 0 | AJ10: 0 | AK10: 0
D11: Loan Phasing
D12: Senior debt repayment schedule dummy | F12: =IF(AND(F5>0,F5<=S_loan_tenure),1,0) -> 0 | G12: =IF(AND(G5>0,G5<=S_loan_tenure),1,0) -> 0 | H12: 0 | I12: 0 | J12: 1 | K12: 1 | L12: 1 | M12: 1 | N12: 1 | O12: 1 | P12: 1 | Q12: 1 | R12: 1 | S12: 1 | T12: 1 | U12: 1 | V12: 1 | W12: 1 | X12: 1 | Y12: 0 | Z12: 0 | AA12: 0 | AB12: 0 | AC12: 0 | AD12: 0 | AE12: 0 | AF12: 0 | AG12: 0 | AH12: 0 | AI12: 0 | AJ12: 0 | AK12: 0
D13: Senior debt repayment period | F13: =IF(F12=1,SUM($F$12:F12),0) -> 0 | G13: =IF(G12=1,SUM($F$12:G12),0) -> 0 | H13: =IF(H12=1,SUM($F$12:H12),0) -> 0 | I13: =IF(I12=1,SUM($F$12:I12),0) -> 0 | J13: =IF(J12=1,SUM($F$12:J12),0) -> 1 | K13: =IF(K12=1,SUM($F$12:K12),0) -> 2 | L13: =IF(L12=1,SUM($F$12:L12),0) -> 3 | M13: =IF(M12=1,SUM($F$12:M12),0) -> 4 | N13: =IF(N12=1,SUM($F$12:N12),0) -> 5 | O13: =IF(O12=1,SUM($F$12:O12),0) -> 6 | P13: =IF(P12=1,SUM($F$12:P12),0) -> 7 | Q13: =IF(Q12=1,SUM($F$12:Q12),0) -> 8 | R13: =IF(R12=1,SUM($F$12:R12),0) -> 9 | S13: =IF(S12=1,SUM($F$12:S12),0) -> 10 | T13: =IF(T12=1,SUM($F$12:T12),0) -> 11 | U13: =IF(U12=1,SUM($F$12:U12),0) -> 12 | V13: =IF(V12=1,SUM($F$12:V12),0) -> 13 | W13: =IF(W12=1,SUM($F$12:W12),0) -> 14 | X13: =IF(X12=1,SUM($F$12:X12),0) -> 15 | Y13: =IF(Y12=1,SUM($F$12:Y12),0) -> 0 | Z13: =IF(Z12=1,SUM($F$12:Z12),0) -> 0 | AA13: =IF(AA12=1,SUM($F$12:AA12),0) -> 0 | AB13: =IF(AB12=1,SUM($F$12:AB12),0) -> 0 | AC13: =IF(AC12=1,SUM($F$12:AC12),0) -> 0 | AD13: =IF(AD12=1,SUM($F$12:AD12),0) -> 0 | AE13: =IF(AE12=1,SUM($F$12:AE12),0) -> 0 | AF13: =IF(AF12=1,SUM($F$12:AF12),0) -> 0 | AG13: =IF(AG12=1,SUM($F$12:AG12),0) -> 0 | AH13: =IF(AH12=1,SUM($F$12:AH12),0) -> 0 | AI13: =IF(AI12=1,SUM($F$12:AI12),0) -> 0 | AJ13: =IF(AJ12=1,SUM($F$12:AJ12),0) -> 0 | AK13: =IF(AK12=1,SUM($F$12:AK12),0) -> 0
D14: Junior debt repayment schedule dummy | F14: =IF(AND(F5>0,F5<=J_loan_tenure),1,0) -> 0 | G14: 0 | H14: 0 | I14: 0 | J14: 1 | K14: 1 | L14: 1 | M14: 1 | N14: 1 | O14: 1 | P14: 1 | Q14: 1 | R14: 1 | S14: 1 | T14: 1 | U14: 1 | V14: 1 | W14: 1 | X14: 1 | Y14: 1 | Z14: 1 | AA14: 1 | AB14: 1 | AC14: 1 | AD14: 1 | AE14: 1 | AF14: 1 | AG14: 1 | AH14: 1 | AI14: 0 | AJ14: 0 | AK14: 0
D15: Junior debt repayment period | F15: =IF(F14=1,SUM($F$14:F14),0) -> 0 | G15: =IF(G14=1,SUM($F$14:G14),0) -> 0 | H15: =IF(H14=1,SUM($F$14:H14),0) -> 0 | I15: =IF(I14=1,SUM($F$14:I14),0) -> 0 | J15: =IF(J14=1,SUM($F$14:J14),0) -> 1 | K15: =IF(K14=1,SUM($F$14:K14),0) -> 2 | L15: =IF(L14=1,SUM($F$14:L14),0) -> 3 | M15: =IF(M14=1,SUM($F$14:M14),0) -> 4 | N15: =IF(N14=1,SUM($F$14:N14),0) -> 5 | O15: =IF(O14=1,SUM($F$14:O14),0) -> 6 | P15: =IF(P14=1,SUM($F$14:P14),0) -> 7 | Q15: =IF(Q14=1,SUM($F$14:Q14),0) -> 8 | R15: =IF(R14=1,SUM($F$14:R14),0) -> 9 | S15: =IF(S14=1,SUM($F$14:S14),0) -> 10 | T15: =IF(T14=1,SUM($F$14:T14),0) -> 11 | U15: =IF(U14=1,SUM($F$14:U14),0) -> 12 | V15: =IF(V14=1,SUM($F$14:V14),0) -> 13 | W15: =IF(W14=1,SUM($F$14:W14),0) -> 14 | X15: =IF(X14=1,SUM($F$14:X14),0) -> 15 | Y15: =IF(Y14=1,SUM($F$14:Y14),0) -> 16 | Z15: =IF(Z14=1,SUM($F$14:Z14),0) -> 17 | AA15: =IF(AA14=1,SUM($F$14:AA14),0) -> 18 | AB15: =IF(AB14=1,SUM($F$14:AB14),0) -> 19 | AC15: =IF(AC14=1,SUM($F$14:AC14),0) -> 20 | AD15: =IF(AD14=1,SUM($F$14:AD14),0) -> 21 | AE15: =IF(AE14=1,SUM($F$14:AE14),0) -> 22 | AF15: =IF(AF14=1,SUM($F$14:AF14),0) -> 23 | AG15: =IF(AG14=1,SUM($F$14:AG14),0) -> 24 | AH15: =IF(AH14=1,SUM($F$14:AH14),0) -> 25 | AI15: =IF(AI14=1,SUM($F$14:AI14),0) -> 0 | AJ15: =IF(AJ14=1,SUM($F$14:AJ14),0) -> 0 | AK15: =IF(AK14=1,SUM($F$14:AK14),0) -> 0
D16: Interest and inflation
D17: Indexing | F17: =IF(AND(F8+F10=1,Inf_OPEX_factor,F$3<$F$3+constr_dur+indexing_duration),indexing_level,0) -> 0 | G17: 0 | H17: 0 | I17: =IF(AND(I8+I10=1,Inf_OPEX_factor,I$3<$F$3+constr_dur+indexing_duration),indexing_level,0) -> 0 | J17: 0 | K17: 0 | L17: 0 | M17: 0 | N17: 0 | O17: 0 | P17: 0 | Q17: 0 | R17: 0 | S17: 0 | T17: 0 | U17: 0 | V17: 0 | W17: 0 | X17: 0 | Y17: 0 | Z17: 0 | AA17: 0 | AB17: 0 | AC17: 0 | AD17: 0 | AE17: 0 | AF17: 0 | AG17: 0 | AH17: 0 | AI17: 0 | AJ17: 0 | AK17: 0
D18: Inflation index (CPI) | F18: 1 | G18: =1+INDEX(Inflation!$D$4:$BM$5,2,G3-Inflation!$D$4+1)/100*(G7+G10+G8)-G17 -> 1.05 | H18: =1+INDEX(Inflation!$D$4:$BM$5,2,H3-Inflation!$D$4+1)/100*(H7+H10+H8)-H17 -> 1.05 | I18: =1+INDEX(Inflation!$D$4:$BM$5,2,I3-Inflation!$D$4+1)/100*(I7+I10+I8)-I17 -> 1.05 | J18: =1+INDEX(Inflation!$D$4:$BM$5,2,J3-Inflation!$D$4+1)/100*(J7+J10+J8)-J17 -> 1.05 | K18: =1+INDEX(Inflation!$D$4:$BM$5,2,K3-Inflation!$D$4+1)/100*(K7+K10+K8)-K17 -> 1.05 | L18: =1+INDEX(Inflation!$D$4:$BM$5,2,L3-Inflation!$D$4+1)/100*(L7+L10+L8)-L17 -> 1.05 | M18: =1+INDEX(Inflation!$D$4:$BM$5,2,M3-Inflation!$D$4+1)/100*(M7+M10+M8)-M17 -> 1.05 | N18: =1+INDEX(Inflation!$D$4:$BM$5,2,N3-Inflation!$D$4+1)/100*(N7+N10+N8)-N17 -> 1.05 | O18: =1+INDEX(Inflation!$D$4:$BM$5,2,O3-Inflation!$D$4+1)/100*(O7+O10+O8)-O17 -> 1.05 | P18: =1+INDEX(Inflation!$D$4:$BM$5,2,P3-Inflation!$D$4+1)/100*(P7+P10+P8)-P17 -> 1.05 | Q18: =1+INDEX(Inflation!$D$4:$BM$5,2,Q3-Inflation!$D$4+1)/100*(Q7+Q10+Q8)-Q17 -> 1.05 | R18: =1+INDEX(Inflation!$D$4:$BM$5,2,R3-Inflation!$D$4+1)/100*(R7+R10+R8)-R17 -> 1.05 | S18: =1+INDEX(Inflation!$D$4:$BM$5,2,S3-Inflation!$D$4+1)/100*(S7+S10+S8)-S17 -> 1.05 | T18: =1+INDEX(Inflation!$D$4:$BM$5,2,T3-Inflation!$D$4+1)/100*(T7+T10+T8)-T17 -> 1.05 | U18: =1+INDEX(Inflation!$D$4:$BM$5,2,U3-Inflation!$D$4+1)/100*(U7+U10+U8)-U17 -> 1.05 | V18: =1+INDEX(Inflation!$D$4:$BM$5,2,V3-Inflation!$D$4+1)/100*(V7+V10+V8)-V17 -> 1.05 | W18: =1+INDEX(Inflation!$D$4:$BM$5,2,W3-Inflation!$D$4+1)/100*(W7+W10+W8)-W17 -> 1.05 | X18: =1+INDEX(Inflation!$D$4:$BM$5,2,X3-Inflation!$D$4+1)/100*(X7+X10+X8)-X17 -> 1.05 | Y18: =1+INDEX(Inflation!$D$4:$BM$5,2,Y3-Inflation!$D$4+1)/100*(Y7+Y10+Y8)-Y17 -> 1.05 | Z18: =1+INDEX(Inflation!$D$4:$BM$5,2,Z3-Inflation!$D$4+1)/100*(Z7+Z10+Z8)-Z17 -> 1.05 | AA18: =1+INDEX(Inflation!$D$4:$BM$5,2,AA3-Inflation!$D$4+1)/100*(AA7+AA10+AA8)-AA17 -> 1.05 | AB18: =1+INDEX(Inflation!$D$4:$BM$5,2,AB3-Inflation!$D$4+1)/100*(AB7+AB10+AB8)-AB17 -> 1.05 | AC18: =1+INDEX(Inflation!$D$4:$BM$5,2,AC3-Inflation!$D$4+1)/100*(AC7+AC10+AC8)-AC17 -> 1.05 | AD18: =1+INDEX(Inflation!$D$4:$BM$5,2,AD3-Inflation!$D$4+1)/100*(AD7+AD10+AD8)-AD17 -> 1.05 | AE18: =1+INDEX(Inflation!$D$4:$BM$5,2,AE3-Inflation!$D$4+1)/100*(AE7+AE10+AE8)-AE17 -> 1.05 | AF18: =1+INDEX(Inflation!$D$4:$BM$5,2,AF3-Inflation!$D$4+1)/100*(AF7+AF10+AF8)-AF17 -> 1.05 | AG18: =1+INDEX(Inflation!$D$4:$BM$5,2,AG3-Inflation!$D$4+1)/100*(AG7+AG10+AG8)-AG17 -> 1.05 | AH18: =1+INDEX(Inflation!$D$4:$BM$5,2,AH3-Inflation!$D$4+1)/100*(AH7+AH10+AH8)-AH17 -> 1.05 | AI18: =1+INDEX(Inflation!$D$4:$BM$5,2,AI3-Inflation!$D$4+1)/100*(AI7+AI10+AI8)-AI17 -> 1.05 | AJ18: =1+INDEX(Inflation!$D$4:$BM$5,2,AJ3-Inflation!$D$4+1)/100*(AJ7+AJ10+AJ8)-AJ17 -> 1.05 | AK18: =1+INDEX(Inflation!$D$4:$BM$5,2,AK3-Inflation!$D$4+1)/100*(AK7+AK10+AK8)-AK17 -> 1
D19: WACC | F19: =IF(F5<MAX(S_loan_tenure,J_loan_tenure),IF(F$5<1,Const_I*(1-Equity_S)+Equity_I*Equity_S,WACC),Equity_I)*SUM(F7:F10) -> 0.0675 | G19: 0.0675 | H19: 0.0675 | I19: 0.0675 | J19: 0.09 | K19: 0.09 | L19: 0.09 | M19: 0.09 | N19: 0.09 | O19: 0.09 | P19: 0.09 | Q19: 0.09 | R19: 0.09 | S19: 0.09 | T19: 0.09 | U19: 0.09 | V19: 0.09 | W19: 0.09 | X19: 0.09 | Y19: 0.09 | Z19: 0.09 | AA19: 0.09 | AB19: 0.09 | AC19: 0.09 | AD19: 0.09 | AE19: 0.09 | AF19: 0.09 | AG19: 0.09 | AH19: 0.12 | AI19: 0.12 | AJ19: 0.12 | AK19: 0.12
D20: Compound WACC | E20: =PRODUCT(F20:AK20)^(1/COUNT(F5:AK5))-1 -> 0.0908577257 | F20: =1+F19 -> 1.0675 | G20: =1+G19 -> 1.0675 | H20: 1.0675 | I20: 1.0675 | J20: 1.09 | K20: 1.09 | L20: 1.09 | M20: 1.09 | N20: 1.09 | O20: 1.09 | P20: 1.09 | Q20: 1.09 | R20: 1.09 | S20: 1.09 | T20: 1.09 | U20: 1.09 | V20: 1.09 | W20: =1+W19 -> 1.09 | X20: 1.09 | Y20: 1.09 | Z20: 1.09 | AA20: 1.09 | AB20: 1.09 | AC20: 1.09 | AD20: 1.09 | AE20: 1.09 | AF20: 1.09 | AG20: 1.09 | AH20: 1.12 | AI20: 1.12 | AJ20: 1.12 | AK20: 1.12
D21: Discount factor | E21: 1 | F21: =1/(1+E19)*E$21*SUM(F7:F10) -> 1 | G21: 0.9367681499 | H21: 0.8775345666 | I21: 0.8220464324 | J21: 0.7700669156 | K21: 0.7064834088 | L21: 0.6481499164 | M21: 0.5946329508 | N21: 0.5455348172 | O21: 0.500490658 | P21: 0.4591657413 | Q21: 0.4212529737 | R21: 0.3864706181 | S21: 0.3545602 | T21: 0.3252845872 | U21: 0.2984262268 | V21: 0.2737855292 | W21: 0.2511793846 | X21: 0.2304398023 | Y21: 0.2114126627 | Z21: 0.1939565713 | AA21: 0.1779418085 | AB21: 0.1632493656 | AC21: 0.1497700602 | AD21: 0.1374037249 | AE21: 0.1260584633 | AF21: 0.1156499663 | AG21: 0.1061008865 | AH21: 0.09734026285 | AI21: 0.08691094897 | AJ21: 0.07759906158 | AK21: 0.06928487641
D22: GBI
D23: GBI limit | E23: USD/MWh | F23: =IFERROR(IF(GBI_yn>0,IF(GBI_y-F5>=0,GBI,0)*IF(F5<=0,0,1),GBI*IF(F5<=0,0,1)),0) -> 0 | G23: 0 | H23: 0 | I23: 0 | J23: 0 | K23: 0 | L23: 0 | M23: 0 | N23: 0 | O23: 0 | P23: 0 | Q23: 0 | R23: 0 | S23: 0 | T23: 0 | U23: 0 | V23: 0 | W23: 0 | X23: 0 | Y23: 0 | Z23: 0 | AA23: 0 | AB23: 0 | AC23: 0 | AD23: 0 | AE23: 0 | AF23: 0 | AG23: 0 | AH23: 0 | AI23: 0 | AJ23: 0 | AK23: 0
D24: Energy Flows
D25: Net energy production | E25: MWh | F25: =INDEX('Technical data'!$P$37:$P$68,MATCH(F3,'Technical data'!$K$37:$K$68,0))*1000*(F8+F10)*(1+Sensitivity!$F$8) -> 0 | G25: =INDEX('Technical data'!$P$37:$P$68,MATCH(G3,'Technical data'!$K$37:$K$68,0))*1000*(G8+G10)*(1+Sensitivity!$F$8) -> 0 | H25: =INDEX('Technical data'!$P$37:$P$68,MATCH(H3,'Technical data'!$K$37:$K$68,0))*1000*(H8+H10)*(1+Sensitivity!$F$8) -> 0 | I25: =INDEX('Technical data'!$P$37:$P$68,MATCH(I3,'Technical data'!$K$37:$K$68,0))*1000*(I8+I10)*(1+Sensitivity!$F$8) -> 0 | J25: =INDEX('Technical data'!$P$37:$P$68,MATCH(J3,'Technical data'!$K$37:$K$68,0))*1000*(J8+J10)*(1+Sensitivity!$F$8) -> 2344551.3 | K25: =INDEX('Technical data'!$P$37:$P$68,MATCH(K3,'Technical data'!$K$37:$K$68,0))*1000*(K8+K10)*(1+Sensitivity!$F$8) -> 2344551.3 | L25: =INDEX('Technical data'!$P$37:$P$68,MATCH(L3,'Technical data'!$K$37:$K$68,0))*1000*(L8+L10)*(1+Sensitivity!$F$8) -> 2344551.3 | M25: =INDEX('Technical data'!$P$37:$P$68,MATCH(M3,'Technical data'!$K$37:$K$68,0))*1000*(M8+M10)*(1+Sensitivity!$F$8) -> 2344551.3 | N25: =INDEX('Technical data'!$P$37:$P$68,MATCH(N3,'Technical data'!$K$37:$K$68,0))*1000*(N8+N10)*(1+Sensitivity!$F$8) -> 2344551.3 | O25: =INDEX('Technical data'!$P$37:$P$68,MATCH(O3,'Technical data'!$K$37:$K$68,0))*1000*(O8+O10)*(1+Sensitivity!$F$8) -> 2344551.3 | P25: =INDEX('Technical data'!$P$37:$P$68,MATCH(P3,'Technical data'!$K$37:$K$68,0))*1000*(P8+P10)*(1+Sensitivity!$F$8) -> 2344551.3 | Q25: =INDEX('Technical data'!$P$37:$P$68,MATCH(Q3,'Technical data'!$K$37:$K$68,0))*1000*(Q8+Q10)*(1+Sensitivity!$F$8) -> 2344551.3 | R25: =INDEX('Technical data'!$P$37:$P$68,MATCH(R3,'Technical data'!$K$37:$K$68,0))*1000*(R8+R10)*(1+Sensitivity!$F$8) -> 2344551.3 | S25: =INDEX('Technical data'!$P$37:$P$68,MATCH(S3,'Technical data'!$K$37:$K$68,0))*1000*(S8+S10)*(1+Sensitivity!$F$8) -> 2344551.3 | T25: =INDEX('Technical data'!$P$37:$P$68,MATCH(T3,'Technical data'!$K$37:$K$68,0))*1000*(T8+T10)*(1+Sensitivity!$F$8) -> 2344551.3 | U25: =INDEX('Technical data'!$P$37:$P$68,MATCH(U3,'Technical data'!$K$37:$K$68,0))*1000*(U8+U10)*(1+Sensitivity!$F$8) -> 2344551.3 | V25: =INDEX('Technical data'!$P$37:$P$68,MATCH(V3,'Technical data'!$K$37:$K$68,0))*1000*(V8+V10)*(1+Sensitivity!$F$8) -> 2344551.3 | W25: =INDEX('Technical data'!$P$37:$P$68,MATCH(W3,'Technical data'!$K$37:$K$68,0))*1000*(W8+W10)*(1+Sensitivity!$F$8) -> 2344551.3 | X25: =INDEX('Technical data'!$P$37:$P$68,MATCH(X3,'Technical data'!$K$37:$K$68,0))*1000*(X8+X10)*(1+Sensitivity!$F$8) -> 2344551.3 | Y25: =INDEX('Technical data'!$P$37:$P$68,MATCH(Y3,'Technical data'!$K$37:$K$68,0))*1000*(Y8+Y10)*(1+Sensitivity!$F$8) -> 2344551.3 | Z25: =INDEX('Technical data'!$P$37:$P$68,MATCH(Z3,'Technical data'!$K$37:$K$68,0))*1000*(Z8+Z10)*(1+Sensitivity!$F$8) -> 2344551.3 | AA25: =INDEX('Technical data'!$P$37:$P$68,MATCH(AA3,'Technical data'!$K$37:$K$68,0))*1000*(AA8+AA10)*(1+Sensitivity!$F$8) -> 2344551.3 | AB25: =INDEX('Technical data'!$P$37:$P$68,MATCH(AB3,'Technical data'!$K$37:$K$68,0))*1000*(AB8+AB10)*(1+Sensitivity!$F$8) -> 2344551.3 | AC25: =INDEX('Technical data'!$P$37:$P$68,MATCH(AC3,'Technical data'!$K$37:$K$68,0))*1000*(AC8+AC10)*(1+Sensitivity!$F$8) -> 2344551.3 | AD25: =INDEX('Technical data'!$P$37:$P$68,MATCH(AD3,'Technical data'!$K$37:$K$68,0))*1000*(AD8+AD10)*(1+Sensitivity!$F$8) -> 2344551.3 | AE25: =INDEX('Technical data'!$P$37:$P$68,MATCH(AE3,'Technical data'!$K$37:$K$68,0))*1000*(AE8+AE10)*(1+Sensitivity!$F$8) -> 2344551.3 | AF25: =INDEX('Technical data'!$P$37:$P$68,MATCH(AF3,'Technical data'!$K$37:$K$68,0))*1000*(AF8+AF10)*(1+Sensitivity!$F$8) -> 2344551.3 | AG25: =INDEX('Technical data'!$P$37:$P$68,MATCH(AG3,'Technical data'!$K$37:$K$68,0))*1000*(AG8+AG10)*(1+Sensitivity!$F$8) -> 2344551.3 | AH25: =INDEX('Technical data'!$P$37:$P$68,MATCH(AH3,'Technical data'!$K$37:$K$68,0))*1000*(AH8+AH10)*(1+Sensitivity!$F$8) -> 2344551.3 | AI25: =INDEX('Technical data'!$P$37:$P$68,MATCH(AI3,'Technical data'!$K$37:$K$68,0))*1000*(AI8+AI10)*(1+Sensitivity!$F$8) -> 2344551.3 | AJ25: =INDEX('Technical data'!$P$37:$P$68,MATCH(AJ3,'Technical data'!$K$37:$K$68,0))*1000*(AJ8+AJ10)*(1+Sensitivity!$F$8) -> 2344551.3 | AK25: =INDEX('Technical data'!$P$37:$P$68,MATCH(AK3,'Technical data'!$K$37:$K$68,0))*1000*(AK8+AK10)*(1+Sensitivity!$F$8) -> 0
D26: Net energy production inkl. Late comisisoning | E26: MWh | F26: =F25*(12-delay_months)/12+IFERROR(E25*delay_months/12,0) -> 0 | G26: 0 | H26: 0 | I26: 0 | J26: 2344551.3 | K26: 2344551.3 | L26: 2344551.3 | M26: 2344551.3 | N26: 2344551.3 | O26: 2344551.3 | P26: 2344551.3 | Q26: 2344551.3 | R26: 2344551.3 | S26: 2344551.3 | T26: 2344551.3 | U26: 2344551.3 | V26: 2344551.3 | W26: 2344551.3 | X26: 2344551.3 | Y26: 2344551.3 | Z26: 2344551.3 | AA26: 2344551.3 | AB26: 2344551.3 | AC26: 2344551.3 | AD26: 2344551.3 | AE26: 2344551.3 | AF26: 2344551.3 | AG26: 2344551.3 | AH26: 2344551.3 | AI26: 2344551.3 | AJ26: 2344551.3 | AK26: 0
D27: Comitted AEP | E27: Mwh | F27: =IFERROR(_xlfn.IFS(F8=1,Comitted_AEP,F10=1,(12-delay_months)/12*Comitted_AEP,F9=1,(delay_months)/12*Comitted_AEP),0) -> 0 | G27: 0 | H27: 0 | I27: 0 | J27: 0 | K27: 0 | L27: 0 | M27: 0 | N27: 0 | O27: 0 | P27: 0 | Q27: 0 | R27: 0 | S27: 0 | T27: 0 | U27: 0 | V27: 0 | W27: 0 | X27: 0 | Y27: 0 | Z27: 0 | AA27: 0 | AB27: 0 | AC27: 0 | AD27: 0 | AE27: 0 | AF27: 0 | AG27: 0 | AH27: 0 | AI27: 0 | AJ27: 0 | AK27: 0
D28: Total overproduction | E28: MWh | F28: =IF(F26>F27,(F26-F27)*Over_penalty,0) -> 0 | G28: 0 | H28: 0 | I28: =IF(I26>I27,(I26-I27)*Over_penalty,0) -> 0 | J28: 0 | K28: 0 | L28: 0 | M28: 0 | N28: 0 | O28: 0 | P28: 0 | Q28: 0 | R28: 0 | S28: 0 | T28: 0 | U28: 0 | V28: 0 | W28: 0 | X28: 0 | Y28: 0 | Z28: =IF(Z26>Z27,(Z26-Z27)*Over_penalty,0) -> 0 | AA28: 0 | AB28: 0 | AC28: 0 | AD28: 0 | AE28: 0 | AF28: 0 | AG28: 0 | AH28: 0 | AI28: 0 | AJ28: 0 | AK28: 0
D29: Total underproduction | E29: MWh | F29: =IF(F26<>0,(IF(F26<F27,(F27-F26)*Under_penalty,0)),0) -> 0 | G29: =IF(G26<>0,(IF(G26<G27,(G27-G26)*Under_penalty,0)),0) -> 0 | H29: 0 | I29: 0 | J29: 0 | K29: 0 | L29: 0 | M29: 0 | N29: 0 | O29: 0 | P29: 0 | Q29: 0 | R29: 0 | S29: 0 | T29: 0 | U29: 0 | V29: 0 | W29: 0 | X29: 0 | Y29: 0 | Z29: 0 | AA29: 0 | AB29: 0 | AC29: 0 | AD29: 0 | AE29: 0 | AF29: 0 | AG29: 0 | AH29: 0 | AI29: 0 | AJ29: 0 | AK29: 0
D30: Net energy production corrected for over and underproduction | E30: Mwh | F30: =F26-F28-F29 -> 0 | G30: =G26-G28-G29 -> 0 | H30: 0 | I30: =I26-I28-I29 -> 0 | J30: 2344551.3 | K30: 2344551.3 | L30: 2344551.3 | M30: 2344551.3 | N30: 2344551.3 | O30: 2344551.3 | P30: 2344551.3 | Q30: 2344551.3 | R30: 2344551.3 | S30: 2344551.3 | T30: 2344551.3 | U30: 2344551.3 | V30: 2344551.3 | W30: 2344551.3 | X30: 2344551.3 | Y30: 2344551.3 | Z30: =Z26-Z28-Z29 -> 2344551.3 | AA30: =AA26-AA28-AA29 -> 2344551.3 | AB30: 2344551.3 | AC30: 2344551.3 | AD30: 2344551.3 | AE30: 2344551.3 | AF30: 2344551.3 | AG30: 2344551.3 | AH30: 2344551.3 | AI30: 2344551.3 | AJ30: 2344551.3 | AK30: 0
D31: Net energy production incl. Curtailment | E31: MWh | F31: =F30*(1-Level_curtailment) -> 0 | G31: =G30*(1-Level_curtailment) -> 0 | H31: 0 | I31: 0 | J31: 2344551.3 | K31: 2344551.3 | L31: 2344551.3 | M31: 2344551.3 | N31: 2344551.3 | O31: 2344551.3 | P31: 2344551.3 | Q31: 2344551.3 | R31: 2344551.3 | S31: 2344551.3 | T31: 2344551.3 | U31: 2344551.3 | V31: 2344551.3 | W31: 2344551.3 | X31: 2344551.3 | Y31: 2344551.3 | Z31: 2344551.3 | AA31: 2344551.3 | AB31: 2344551.3 | AC31: 2344551.3 | AD31: 2344551.3 | AE31: 2344551.3 | AF31: 2344551.3 | AG31: 2344551.3 | AH31: 2344551.3 | AI31: 2344551.3 | AJ31: 2344551.3 | AK31: 0
D32: Net energy production including payment lag | E32: MWh | F32: =(F31*((12-Payment_lag)/12)+IFERROR(E31*(Payment_lag/12),0)) -> 0 | G32: 0 | H32: 0 | I32: 0 | J32: 2344551.3 | K32: 2344551.3 | L32: 2344551.3 | M32: 2344551.3 | N32: 2344551.3 | O32: 2344551.3 | P32: 2344551.3 | Q32: 2344551.3 | R32: 2344551.3 | S32: 2344551.3 | T32: 2344551.3 | U32: 2344551.3 | V32: 2344551.3 | W32: 2344551.3 | X32: 2344551.3 | Y32: 2344551.3 | Z32: 2344551.3 | AA32: 2344551.3 | AB32: 2344551.3 | AC32: 2344551.3 | AD32: 2344551.3 | AE32: 2344551.3 | AF32: 2344551.3 | AG32: 2344551.3 | AH32: 2344551.3 | AI32: 2344551.3 | AJ32: 2344551.3 | AK32: 0
B34: Operating Cash Flow
D37: Operating Costs
D38: Variable OPEX | E38: =intl_currency -> USD | F38: =-Total_var_opex*PRODUCT($F$18:F$18)*F26*(1+P_90_low*Exchange_choice) -> 0 | G38: =-Total_var_opex*PRODUCT($F$18:G$18)*G26*(1+P_90_low*Exchange_choice) -> 0 | H38: =-Total_var_opex*PRODUCT($F$18:H$18)*H26*(1+P_90_low*Exchange_choice) -> 0 | I38: =-Total_var_opex*PRODUCT($F$18:I$18)*I26*(1+P_90_low*Exchange_choice) -> 0 | J38: =-Total_var_opex*PRODUCT($F$18:J$18)*J26*(1+P_90_low*Exchange_choice) -> 0 | K38: =-Total_var_opex*PRODUCT($F$18:K$18)*K26*(1+P_90_low*Exchange_choice) -> 0 | L38: =-Total_var_opex*PRODUCT($F$18:L$18)*L26*(1+P_90_low*Exchange_choice) -> 0 | M38: =-Total_var_opex*PRODUCT($F$18:M$18)*M26*(1+P_90_low*Exchange_choice) -> 0 | N38: =-Total_var_opex*PRODUCT($F$18:N$18)*N26*(1+P_90_low*Exchange_choice) -> 0 | O38: =-Total_var_opex*PRODUCT($F$18:O$18)*O26*(1+P_90_low*Exchange_choice) -> 0 | P38: =-Total_var_opex*PRODUCT($F$18:P$18)*P26*(1+P_90_low*Exchange_choice) -> 0 | Q38: =-Total_var_opex*PRODUCT($F$18:Q$18)*Q26*(1+P_90_low*Exchange_choice) -> 0 | R38: =-Total_var_opex*PRODUCT($F$18:R$18)*R26*(1+P_90_low*Exchange_choice) -> 0 | S38: =-Total_var_opex*PRODUCT($F$18:S$18)*S26*(1+P_90_low*Exchange_choice) -> 0 | T38: =-Total_var_opex*PRODUCT($F$18:T$18)*T26*(1+P_90_low*Exchange_choice) -> 0 | U38: =-Total_var_opex*PRODUCT($F$18:U$18)*U26*(1+P_90_low*Exchange_choice) -> 0 | V38: =-Total_var_opex*PRODUCT($F$18:V$18)*V26*(1+P_90_low*Exchange_choice) -> 0 | W38: =-Total_var_opex*PRODUCT($F$18:W$18)*W26*(1+P_90_low*Exchange_choice) -> 0 | X38: =-Total_var_opex*PRODUCT($F$18:X$18)*X26*(1+P_90_low*Exchange_choice) -> 0 | Y38: =-Total_var_opex*PRODUCT($F$18:Y$18)*Y26*(1+P_90_low*Exchange_choice) -> 0 | Z38: =-Total_var_opex*PRODUCT($F$18:Z$18)*Z26*(1+P_90_low*Exchange_choice) -> 0 | AA38: =-Total_var_opex*PRODUCT($F$18:AA$18)*AA26*(1+P_90_low*Exchange_choice) -> 0 | AB38: =-Total_var_opex*PRODUCT($F$18:AB$18)*AB26*(1+P_90_low*Exchange_choice) -> 0 | AC38: =-Total_var_opex*PRODUCT($F$18:AC$18)*AC26*(1+P_90_low*Exchange_choice) -> 0 | AD38: =-Total_var_opex*PRODUCT($F$18:AD$18)*AD26*(1+P_90_low*Exchange_choice) -> 0 | AE38: =-Total_var_opex*PRODUCT($F$18:AE$18)*AE26*(1+P_90_low*Exchange_choice) -> 0 | AF38: =-Total_var_opex*PRODUCT($F$18:AF$18)*AF26*(1+P_90_low*Exchange_choice) -> 0 | AG38: =-Total_var_opex*PRODUCT($F$18:AG$18)*AG26*(1+P_90_low*Exchange_choice) -> 0 | AH38: =-Total_var_opex*PRODUCT($F$18:AH$18)*AH26*(1+P_90_low*Exchange_choice) -> 0 | AI38: =-Total_var_opex*PRODUCT($F$18:AI$18)*AI26*(1+P_90_low*Exchange_choice) -> 0 | AJ38: =-Total_var_opex*PRODUCT($F$18:AJ$18)*AJ26*(1+P_90_low*Exchange_choice) -> 0 | AK38: =-Total_var_opex*PRODUCT($F$18:AK$18)*AK26*(1+P_90_low*Exchange_choice) -> 0
D39: GBI | E39: USD | F39: =F23*F26*(1+P_90_low*Exchange_choice) -> 0 | G39: 0 | H39: 0 | I39: 0 | J39: 0 | K39: 0 | L39: 0 | M39: 0 | N39: 0 | O39: 0 | P39: 0 | Q39: 0 | R39: 0 | S39: 0 | T39: 0 | U39: 0 | V39: 0 | W39: 0 | X39: 0 | Y39: 0 | Z39: 0 | AA39: 0 | AB39: 0 | AC39: 0 | AD39: 0 | AE39: 0 | AF39: 0 | AG39: 0 | AH39: 0 | AI39: 0 | AJ39: 0 | AK39: 0
D40: Fixed OPEX | E40: =intl_currency -> USD | F40: =(-Total_fix_opex*NCAP*SUM(F8:F8))*(1+P_90_low*Exchange_choice)*PRODUCT($F$18:F18) -> 0 | G40: =(-Total_fix_opex*NCAP*SUM(G8:G8))*(1+P_90_low*Exchange_choice)*PRODUCT($F$18:G18) -> 0 | H40: =(-Total_fix_opex*NCAP*SUM(H8:H8))*(1+P_90_low*Exchange_choice)*PRODUCT($F$18:H18) -> 0 | I40: =(-Total_fix_opex*NCAP*SUM(I8:I8))*(1+P_90_low*Exchange_choice)*PRODUCT($F$18:I18) -> 0 | J40: =(-Total_fix_opex*NCAP*SUM(J8:J8))*(1+P_90_low*Exchange_choice)*PRODUCT($F$18:J18) -> -38713874.06 | K40: =(-Total_fix_opex*NCAP*SUM(K8:K8))*(1+P_90_low*Exchange_choice)*PRODUCT($F$18:K18) -> -40649567.77 | L40: =(-Total_fix_opex*NCAP*SUM(L8:L8))*(1+P_90_low*Exchange_choice)*PRODUCT($F$18:L18) -> -42682046.15 | M40: =(-Total_fix_opex*NCAP*SUM(M8:M8))*(1+P_90_low*Exchange_choice)*PRODUCT($F$18:M18) -> -44816148.46 | N40: =(-Total_fix_opex*NCAP*SUM(N8:N8))*(1+P_90_low*Exchange_choice)*PRODUCT($F$18:N18) -> -47056955.88 | O40: =(-Total_fix_opex*NCAP*SUM(O8:O8))*(1+P_90_low*Exchange_choice)*PRODUCT($F$18:O18) -> -49409803.68 | P40: =(-Total_fix_opex*NCAP*SUM(P8:P8))*(1+P_90_low*Exchange_choice)*PRODUCT($F$18:P18) -> -51880293.86 | Q40: =(-Total_fix_opex*NCAP*SUM(Q8:Q8))*(1+P_90_low*Exchange_choice)*PRODUCT($F$18:Q18) -> -54474308.56 | R40: =(-Total_fix_opex*NCAP*SUM(R8:R8))*(1+P_90_low*Exchange_choice)*PRODUCT($F$18:R18) -> -57198023.98 | S40: =(-Total_fix_opex*NCAP*SUM(S8:S8))*(1+P_90_low*Exchange_choice)*PRODUCT($F$18:S18) -> -60057925.18 | T40: =(-Total_fix_opex*NCAP*SUM(T8:T8))*(1+P_90_low*Exchange_choice)*PRODUCT($F$18:T18) -> -63060821.44 | U40: =(-Total_fix_opex*NCAP*SUM(U8:U8))*(1+P_90_low*Exchange_choice)*PRODUCT($F$18:U18) -> -66213862.51 | V40: =(-Total_fix_opex*NCAP*SUM(V8:V8))*(1+P_90_low*Exchange_choice)*PRODUCT($F$18:V18) -> -69524555.64 | W40: =(-Total_fix_opex*NCAP*SUM(W8:W8))*(1+P_90_low*Exchange_choice)*PRODUCT($F$18:W18) -> -73000783.42 | X40: =(-Total_fix_opex*NCAP*SUM(X8:X8))*(1+P_90_low*Exchange_choice)*PRODUCT($F$18:X18) -> -76650822.59 | Y40: =(-Total_fix_opex*NCAP*SUM(Y8:Y8))*(1+P_90_low*Exchange_choice)*PRODUCT($F$18:Y18) -> -80483363.72 | Z40: =(-Total_fix_opex*NCAP*SUM(Z8:Z8))*(1+P_90_low*Exchange_choice)*PRODUCT($F$18:Z18) -> -84507531.91 | AA40: =(-Total_fix_opex*NCAP*SUM(AA8:AA8))*(1+P_90_low*Exchange_choice)*PRODUCT($F$18:AA18) -> -88732908.5 | AB40: =(-Total_fix_opex*NCAP*SUM(AB8:AB8))*(1+P_90_low*Exchange_choice)*PRODUCT($F$18:AB18) -> -93169553.93 | AC40: =(-Total_fix_opex*NCAP*SUM(AC8:AC8))*(1+P_90_low*Exchange_choice)*PRODUCT($F$18:AC18) -> -97828031.63 | AD40: =(-Total_fix_opex*NCAP*SUM(AD8:AD8))*(1+P_90_low*Exchange_choice)*PRODUCT($F$18:AD18) -> -102719433.2 | AE40: =(-Total_fix_opex*NCAP*SUM(AE8:AE8))*(1+P_90_low*Exchange_choice)*PRODUCT($F$18:AE18) -> -107855404.9 | AF40: =(-Total_fix_opex*NCAP*SUM(AF8:AF8))*(1+P_90_low*Exchange_choice)*PRODUCT($F$18:AF18) -> -113248175.1 | AG40: =(-Total_fix_opex*NCAP*SUM(AG8:AG8))*(1+P_90_low*Exchange_choice)*PRODUCT($F$18:AG18) -> -118910583.9 | AH40: =(-Total_fix_opex*NCAP*SUM(AH8:AH8))*(1+P_90_low*Exchange_choice)*PRODUCT($F$18:AH18) -> -124856113.1 | AI40: =(-Total_fix_opex*NCAP*SUM(AI8:AI8))*(1+P_90_low*Exchange_choice)*PRODUCT($F$18:AI18) -> -131098918.7 | AJ40: =(-Total_fix_opex*NCAP*SUM(AJ8:AJ8))*(1+P_90_low*Exchange_choice)*PRODUCT($F$18:AJ18) -> -137653864.6 | AK40: =(-Total_fix_opex*NCAP*SUM(AK8:AK8))*(1+P_90_low*Exchange_choice)*PRODUCT($F$18:AK18) -> 0
D41: Total Operation Costs | F41: =SUM(F38:F40) -> 0 | G41: 0 | H41: 0 | I41: =SUM(I38:I40) -> 0 | J41: -38713874.06 | K41: -40649567.77 | L41: -42682046.15 | M41: -44816148.46 | N41: -47056955.88 | O41: -49409803.68 | P41: -51880293.86 | Q41: -54474308.56 | R41: -57198023.98 | S41: -60057925.18 | T41: -63060821.44 | U41: -66213862.51 | V41: -69524555.64 | W41: -73000783.42 | X41: -76650822.59 | Y41: -80483363.72 | Z41: -84507531.91 | AA41: -88732908.5 | AB41: -93169553.93 | AC41: -97828031.63 | AD41: -102719433.2 | AE41: -107855404.9 | AF41: -113248175.1 | AG41: -118910583.9 | AH41: -124856113.1 | AI41: -131098918.7 | AJ41: -137653864.6 | AK41: 0
D42: First year of operation | E42: USD/MWh | F42: =IFERROR((F38+F40)/F32,0) -> 0 | G42: =IFERROR((G38+G40)/G32,0) -> 0 | H42: 0 | I42: 0 | J42: -16.51227425 | K42: -17.33788796 | L42: -18.20478236 | M42: -19.11502148 | N42: -20.07077255 | O42: -21.07431118 | P42: -22.12802674 | Q42: -23.23442808 | R42: -24.39614948 | S42: -25.61595696 | T42: -26.8967548 | U42: -28.24159254 | V42: -29.65367217 | W42: -31.13635578 | X42: -32.69317357 | Y42: -34.32783225 | Z42: -36.04422386 | AA42: -37.84643505 | AB42: -39.73875681 | AC42: -41.72569465 | AD42: -43.81197938 | AE42: -46.00257835 | AF42: -48.30270726 | AG42: -50.71784263 | AH42: -53.25373476 | AI42: -55.9164215 | AJ42: -58.71224257 | AK42: 0
D43: First year of operation | E43: INR/MWh | F43: =F42*Exchangerate -> 0 | G43: 0 | H43: 0 | I43: 0 | J43: -1202.319921 | K43: -1262.435917 | L43: -1325.557713 | M43: -1391.835599 | N43: -1461.427379 | O43: -1534.498748 | P43: -1611.223685 | Q43: -1691.784869 | R43: -1776.374113 | S43: -1865.192819 | T43: -1958.452459 | U43: -2056.375082 | V43: -2159.193837 | W43: -2267.153528 | X43: -2380.511205 | Y43: -2499.536765 | Z43: -2624.513603 | AA43: -2755.739283 | AB43: -2893.526248 | AC43: -3038.20256 | AD43: -3190.112688 | AE43: -3349.618322 | AF43: -3517.099238 | AG43: -3692.9542 | AH43: -3877.60191 | AI43: -4071.482006 | AJ43: -4275.056106 | AK43: 0
B45: Investing Cash Flow
D47: Investment Costs
D48: Development dummie (incl. Delayed commision) | F48: =IF(F5<=0,1,IF(AND(F5=1,delay_months>0),1,0)) -> 1 | G48: 1 | H48: 1 | I48: 1 | J48: 0 | K48: 0 | L48: 0 | M48: 0 | N48: 0 | O48: 0 | P48: 0 | Q48: 0 | R48: 0 | S48: 0 | T48: 0 | U48: 0 | V48: 0 | W48: 0 | X48: 0 | Y48: 0 | Z48: 0 | AA48: 0 | AB48: 0 | AC48: 0 | AD48: 0 | AE48: 0 | AF48: 0 | AG48: 0 | AH48: 0 | AI48: 0 | AJ48: 0 | AK48: 0
D49: CAPEX | E49: =intl_currency -> USD | F49: =-(IF(F5<=0,Total_capex/constr_dur,0)-IF(F5<=0,ITC_PCT/constr_dur,0))*10^6 -> -356250000 | G49: -356250000 | H49: -356250000 | I49: -356250000 | J49: 0 | K49: 0 | L49: 0 | M49: 0 | N49: 0 | O49: 0 | P49: 0 | Q49: 0 | R49: 0 | S49: 0 | T49: 0 | U49: 0 | V49: 0 | W49: 0 | X49: 0 | Y49: 0 | Z49: 0 | AA49: 0 | AB49: 0 | AC49: 0 | AD49: 0 | AE49: 0 | AF49: 0 | AG49: 0 | AH49: 0 | AI49: 0 | AJ49: 0 | AK49: 0
D50: CAPEX incl. Delayed commision | E50: USD | F50: =IF(F7=1,F49*constr_dur*12/(constr_dur*12+delay_months),SUM($F$49:$AK$49)-SUM($E$50:E50)) -> -356250000 | G50: =IF(G7=1,G49*constr_dur*12/(constr_dur*12+delay_months),SUM($F$49:$AK$49)-SUM($E$50:F50)) -> -356250000 | H50: =IF(H7=1,H49*constr_dur*12/(constr_dur*12+delay_months),SUM($F$49:$AK$49)-SUM($E$50:G50)) -> -356250000 | I50: =IF(I7=1,I49*constr_dur*12/(constr_dur*12+delay_months),SUM($F$49:$AK$49)-SUM($E$50:H50)) -> -356250000 | J50: =IF(J7=1,J49*constr_dur*12/(constr_dur*12+delay_months),SUM($F$49:$AK$49)-SUM($E$50:I50)) -> 0 | K50: =IF(K7=1,K49*constr_dur*12/(constr_dur*12+delay_months),SUM($F$49:$AK$49)-SUM($E$50:J50)) -> 0 | L50: =IF(L7=1,L49*constr_dur*12/(constr_dur*12+delay_months),SUM($F$49:$AK$49)-SUM($E$50:K50)) -> 0 | M50: =IF(M7=1,M49*constr_dur*12/(constr_dur*12+delay_months),SUM($F$49:$AK$49)-SUM($E$50:L50)) -> 0 | N50: =IF(N7=1,N49*constr_dur*12/(constr_dur*12+delay_months),SUM($F$49:$AK$49)-SUM($E$50:M50)) -> 0 | O50: =IF(O7=1,O49*constr_dur*12/(constr_dur*12+delay_months),SUM($F$49:$AK$49)-SUM($E$50:N50)) -> 0 | P50: =IF(P7=1,P49*constr_dur*12/(constr_dur*12+delay_months),SUM($F$49:$AK$49)-SUM($E$50:O50)) -> 0 | Q50: =IF(Q7=1,Q49*constr_dur*12/(constr_dur*12+delay_months),SUM($F$49:$AK$49)-SUM($E$50:P50)) -> 0 | R50: =IF(R7=1,R49*constr_dur*12/(constr_dur*12+delay_months),SUM($F$49:$AK$49)-SUM($E$50:Q50)) -> 0 | S50: =IF(S7=1,S49*constr_dur*12/(constr_dur*12+delay_months),SUM($F$49:$AK$49)-SUM($E$50:R50)) -> 0 | T50: =IF(T7=1,T49*constr_dur*12/(constr_dur*12+delay_months),SUM($F$49:$AK$49)-SUM($E$50:S50)) -> 0 | U50: =IF(U7=1,U49*constr_dur*12/(constr_dur*12+delay_months),SUM($F$49:$AK$49)-SUM($E$50:T50)) -> 0 | V50: =IF(V7=1,V49*constr_dur*12/(constr_dur*12+delay_months),SUM($F$49:$AK$49)-SUM($E$50:U50)) -> 0 | W50: =IF(W7=1,W49*constr_dur*12/(constr_dur*12+delay_months),SUM($F$49:$AK$49)-SUM($E$50:V50)) -> 0 | X50: =IF(X7=1,X49*constr_dur*12/(constr_dur*12+delay_months),SUM($F$49:$AK$49)-SUM($E$50:W50)) -> 0 | Y50: =IF(Y7=1,Y49*constr_dur*12/(constr_dur*12+delay_months),SUM($F$49:$AK$49)-SUM($E$50:X50)) -> 0 | Z50: =IF(Z7=1,Z49*constr_dur*12/(constr_dur*12+delay_months),SUM($F$49:$AK$49)-SUM($E$50:Y50)) -> 0 | AA50: =IF(AA7=1,AA49*constr_dur*12/(constr_dur*12+delay_months),SUM($F$49:$AK$49)-SUM($E$50:Z50)) -> 0 | AB50: =IF(AB7=1,AB49*constr_dur*12/(constr_dur*12+delay_months),SUM($F$49:$AK$49)-SUM($E$50:AA50)) -> 0 | AC50: =IF(AC7=1,AC49*constr_dur*12/(constr_dur*12+delay_months),SUM($F$49:$AK$49)-SUM($E$50:AB50)) -> 0 | AD50: =IF(AD7=1,AD49*constr_dur*12/(constr_dur*12+delay_months),SUM($F$49:$AK$49)-SUM($E$50:AC50)) -> 0 | AE50: =IF(AE7=1,AE49*constr_dur*12/(constr_dur*12+delay_months),SUM($F$49:$AK$49)-SUM($E$50:AD50)) -> 0 | AF50: =IF(AF7=1,AF49*constr_dur*12/(constr_dur*12+delay_months),SUM($F$49:$AK$49)-SUM($E$50:AE50)) -> 0 | AG50: =IF(AG7=1,AG49*constr_dur*12/(constr_dur*12+delay_months),SUM($F$49:$AK$49)-SUM($E$50:AF50)) -> 0 | AH50: =IF(AH7=1,AH49*constr_dur*12/(constr_dur*12+delay_months),SUM($F$49:$AK$49)-SUM($E$50:AG50)) -> 0 | AI50: =IF(AI7=1,AI49*constr_dur*12/(constr_dur*12+delay_months),SUM($F$49:$AK$49)-SUM($E$50:AH50)) -> 0 | AJ50: =IF(AJ7=1,AJ49*constr_dur*12/(constr_dur*12+delay_months),SUM($F$49:$AK$49)-SUM($E$50:AI50)) -> 0 | AK50: =IF(AK7=1,AK49*constr_dur*12/(constr_dur*12+delay_months),SUM($F$49:$AK$49)-SUM($E$50:AJ50)) -> 0
D51: Interest during construction | E51: USD | F51: =IFERROR((SUM($F$50:F50)*(1-Equity_S)+SUM($E$51:E51))*Const_I,0)*F48 -> -13359375 | G51: =IFERROR((SUM($F$50:G50)*(1-Equity_S)+SUM($E$51:F51))*Const_I,0)*G48 -> -27386718.75 | H51: =IFERROR((SUM($F$50:H50)*(1-Equity_S)+SUM($E$51:G51))*Const_I,0)*H48 -> -42115429.69 | I51: =IFERROR((SUM($F$50:I50)*(1-Equity_S)+SUM($E$51:H51))*Const_I,0)*I48 -> -57580576.17 | J51: =IFERROR((SUM($F$50:J50)*(1-Equity_S)+SUM($E$51:I51))*Const_I,0)*J48 -> 0 | K51: =IFERROR((SUM($F$50:K50)*(1-Equity_S)+SUM($E$51:J51))*Const_I,0)*K48 -> 0 | L51: =IFERROR((SUM($F$50:L50)*(1-Equity_S)+SUM($E$51:K51))*Const_I,0)*L48 -> 0 | M51: =IFERROR((SUM($F$50:M50)*(1-Equity_S)+SUM($E$51:L51))*Const_I,0)*M48 -> 0 | N51: =IFERROR((SUM($F$50:N50)*(1-Equity_S)+SUM($E$51:M51))*Const_I,0)*N48 -> 0 | O51: =IFERROR((SUM($F$50:O50)*(1-Equity_S)+SUM($E$51:N51))*Const_I,0)*O48 -> 0 | P51: =IFERROR((SUM($F$50:P50)*(1-Equity_S)+SUM($E$51:O51))*Const_I,0)*P48 -> 0 | Q51: =IFERROR((SUM($F$50:Q50)*(1-Equity_S)+SUM($E$51:P51))*Const_I,0)*Q48 -> 0 | R51: =IFERROR((SUM($F$50:R50)*(1-Equity_S)+SUM($E$51:Q51))*Const_I,0)*R48 -> 0 | S51: =IFERROR((SUM($F$50:S50)*(1-Equity_S)+SUM($E$51:R51))*Const_I,0)*S48 -> 0 | T51: =IFERROR((SUM($F$50:T50)*(1-Equity_S)+SUM($E$51:S51))*Const_I,0)*T48 -> 0 | U51: =IFERROR((SUM($F$50:U50)*(1-Equity_S)+SUM($E$51:T51))*Const_I,0)*U48 -> 0 | V51: =IFERROR((SUM($F$50:V50)*(1-Equity_S)+SUM($E$51:U51))*Const_I,0)*V48 -> 0 | W51: =IFERROR((SUM($F$50:W50)*(1-Equity_S)+SUM($E$51:V51))*Const_I,0)*W48 -> 0 | X51: =IFERROR((SUM($F$50:X50)*(1-Equity_S)+SUM($E$51:W51))*Const_I,0)*X48 -> 0 | Y51: =IFERROR((SUM($F$50:Y50)*(1-Equity_S)+SUM($E$51:X51))*Const_I,0)*Y48 -> 0 | Z51: =IFERROR((SUM($F$50:Z50)*(1-Equity_S)+SUM($E$51:Y51))*Const_I,0)*Z48 -> 0 | AA51: =IFERROR((SUM($F$50:AA50)*(1-Equity_S)+SUM($E$51:Z51))*Const_I,0)*AA48 -> 0 | AB51: =IFERROR((SUM($F$50:AB50)*(1-Equity_S)+SUM($E$51:AA51))*Const_I,0)*AB48 -> 0 | AC51: =IFERROR((SUM($F$50:AC50)*(1-Equity_S)+SUM($E$51:AB51))*Const_I,0)*AC48 -> 0 | AD51: =IFERROR((SUM($F$50:AD50)*(1-Equity_S)+SUM($E$51:AC51))*Const_I,0)*AD48 -> 0 | AE51: =IFERROR((SUM($F$50:AE50)*(1-Equity_S)+SUM($E$51:AD51))*Const_I,0)*AE48 -> 0 | AF51: =IFERROR((SUM($F$50:AF50)*(1-Equity_S)+SUM($E$51:AE51))*Const_I,0)*AF48 -> 0 | AG51: =IFERROR((SUM($F$50:AG50)*(1-Equity_S)+SUM($E$51:AF51))*Const_I,0)*AG48 -> 0 | AH51: =IFERROR((SUM($F$50:AH50)*(1-Equity_S)+SUM($E$51:AG51))*Const_I,0)*AH48 -> 0 | AI51: =IFERROR((SUM($F$50:AI50)*(1-Equity_S)+SUM($E$51:AH51))*Const_I,0)*AI48 -> 0 | AJ51: =IFERROR((SUM($F$50:AJ50)*(1-Equity_S)+SUM($E$51:AI51))*Const_I,0)*AJ48 -> 0 | AK51: =IFERROR((SUM($F$50:AK50)*(1-Equity_S)+SUM($E$51:AJ51))*Const_I,0)*AK48 -> 0
D52: Initial funding of DSRA | E52: USD | F52: =F49*Cash_percentage -> 0 | G52: =G49*Cash_percentage -> 0 | H52: 0 | I52: 0 | J52: 0 | K52: 0 | L52: 0 | M52: 0 | N52: 0 | O52: 0 | P52: 0 | Q52: 0 | R52: 0 | S52: 0 | T52: 0 | U52: 0 | V52: 0 | W52: 0 | X52: 0 | Y52: 0 | Z52: 0 | AA52: 0 | AB52: 0 | AC52: 0 | AD52: 0 | AE52: 0 | AF52: 0 | AG52: 0 | AH52: 0 | AI52: 0 | AJ52: 0 | AK52: 0
D53: Total Investment Costs | E53: USD | F53: =SUM(F50:F52) -> -369609375 | G53: =SUM(G50:G52) -> -383636718.8 | H53: -398365429.7 | I53: -413830576.2 | J53: 0 | K53: 0 | L53: 0 | M53: 0 | N53: 0 | O53: 0 | P53: 0 | Q53: 0 | R53: 0 | S53: 0 | T53: 0 | U53: 0 | V53: 0 | W53: 0 | X53: 0 | Y53: 0 | Z53: 0 | AA53: 0 | AB53: 0 | AC53: 0 | AD53: 0 | AE53: 0 | AF53: 0 | AG53: 0 | AH53: 0 | AI53: 0 | AJ53: 0 | AK53: 0
D55: Total costs | F55: =F41+F53 -> -369609375 | G55: =G41+G53 -> -383636718.8 | H55: -398365429.7 | I55: -413830576.2 | J55: -38713874.06 | K55: -40649567.77 | L55: -42682046.15 | M55: -44816148.46 | N55: -47056955.88 | O55: -49409803.68 | P55: -51880293.86 | Q55: -54474308.56 | R55: -57198023.98 | S55: -60057925.18 | T55: -63060821.44 | U55: -66213862.51 | V55: -69524555.64 | W55: -73000783.42 | X55: -76650822.59 | Y55: -80483363.72 | Z55: -84507531.91 | AA55: -88732908.5 | AB55: -93169553.93 | AC55: -97828031.63 | AD55: -102719433.2 | AE55: -107855404.9 | AF55: -113248175.1 | AG55: -118910583.9 | AH55: -124856113.1 | AI55: -131098918.7 | AJ55: -137653864.6 | AK55: 0
B57: Public funding
D59: Funding cash flow
D60: Investment subsidy | F60: =IF(F5<=0,ITC_PCT/constr_dur,0)*10^6 -> 0 | G60: =IF(G5<=0,ITC_PCT/constr_dur,0)*10^6 -> 0 | H60: 0 | I60: 0 | J60: 0 | K60: 0 | L60: 0 | M60: 0 | N60: 0 | O60: 0 | P60: 0 | Q60: 0 | R60: 0 | S60: 0 | T60: 0 | U60: 0 | V60: 0 | W60: 0 | X60: 0 | Y60: 0 | Z60: 0 | AA60: 0 | AB60: 0 | AC60: 0 | AD60: 0 | AE60: 0 | AF60: 0 | AG60: 0 | AH60: 0 | AI60: 0 | AJ60: 0 | AK60: 0
D61: GBI | F61: =F23*F26*(1+P_90_low*Exchange_choice) -> 0 | G61: 0 | H61: 0 | I61: 0 | J61: 0 | K61: 0 | L61: 0 | M61: 0 | N61: 0 | O61: 0 | P61: 0 | Q61: 0 | R61: 0 | S61: 0 | T61: 0 | U61: 0 | V61: 0 | W61: 0 | X61: 0 | Y61: 0 | Z61: 0 | AA61: 0 | AB61: 0 | AC61: 0 | AD61: 0 | AE61: 0 | AF61: 0 | AG61: 0 | AH61: 0 | AI61: 0 | AJ61: 0 | AK61: 0
D62: Total | F62: =SUM(F60:F61) -> 0 | G62: =SUM(G60:G61) -> 0 | H62: 0 | I62: 0 | J62: 0 | K62: 0 | L62: 0 | M62: 0 | N62: 0 | O62: 0 | P62: 0 | Q62: 0 | R62: 0 | S62: 0 | T62: 0 | U62: 0 | V62: 0 | W62: 0 | X62: 0 | Y62: 0 | Z62: 0 | AA62: 0 | AB62: 0 | AC62: 0 | AD62: 0 | AE62: 0 | AF62: 0 | AG62: 0 | AH62: 0 | AI62: 0 | AJ62: 0 | AK62: 0
B64: Outputs and Charts
D66: Key indicators | F66: INR | G66: USD | J66: Capacity macro support | K66: mINR | L66: mUSD
D67: NPV Net energy production (MWh) | E67: =IF(WACC_choice,(NPV(WACC,F32:AK32)),SUMPRODUCT($F$32:$AK$32,$F$21:$AK$21)) -> 16653540.13 | H67: (MWh) | J67: Subsidy max | K67: =L67*Exchangerate -> 27460 | L67: ='User Interface'!E118 -> 377.1267887
D68: CAPEX/MW excl. Taxes | F68: =G68*Exchangerate -> 207.5190688 | G68: ='CAPEX & OPEX'!I17 -> 2.85 | H68: (currency/MW)
D69: CAPEX/MW incl. Taxes | F69: =G69*Exchangerate -> 207.5190688 | G69: ='CAPEX & OPEX'!S17 -> 2.85 | H69: (currency/MW)
D70: First year OPEX/MWh | F70: =-INDEX(F43:AK43,MATCH(1,F5:AK5,1)) -> 1202.319921 | G70: =-INDEX(F42:AK42,MATCH(1,F5:AK5,1)) -> 16.51227425 | H70: (currency/MWh)
D71: NPV Total operating cost (million currency) | F71: =-IF(WACC_choice,(NPV(WACC,F41:AK41)),SUMPRODUCT($F$41:$AK$41,$F$21:$AK$21))*Exchangerate/10^6 -> 31731.2946 | G71: =-IF(WACC_choice,(NPV(WACC,F41:AK41)),SUMPRODUCT($F$41:$AK$41,$F$21:$AK$21))/10^6 -> 435.787372 | H71: (million currency) | J71: Average annual subsidy | K71: =L71*Exchangerate -> 0 | L71: =IFERROR(AVERAGEIFS(F62:AK62,F62:AK62,">0")/1000000,0) -> 0
D72: NPV investment cost (million currency) | F72: =-IF(WACC_choice,(NPV(WACC,F53:AK53)),SUMPRODUCT($F$53:$AK$53,$F$21:$AK$21))*Exchangerate/10^6 -> 91946.94737 | G72: =-IF(WACC_choice,(NPV(WACC,F53:AK53)),SUMPRODUCT($F$53:$AK$53,$F$21:$AK$21))/10^6 -> 1262.769738 | H72: (million currency)
D73: NPV total cost (million currency) | F73: =-IF(WACC_choice,(NPV(WACC,F55:AK55)),SUMPRODUCT($F$55:$AK$55,$F$21:$AK$21))*Exchangerate/10^6 -> 123678.242 | G73: =-IF(WACC_choice,(NPV(WACC,F55:AK55)),SUMPRODUCT($F$55:$AK$55,$F$21:$AK$21))/10^6 -> 1698.55711 | H73: (million currency) | J73: Comparison chart macro support
D74: LCoE (INR/kWh) | F74: =F73*10^6/E67/1000 -> 7.426543606 | G74: =G73*10^6/E67/1000 -> 0.1019937561 | H74: (currency/KWh) | J74: =D84 -> NPV of government funding | K74: =(F84) -> 0
D75: Compound WACC | E75: =$E$20 -> 0.0908577257 | H75: (%)
D76: Simple WACC | E76: =WACC -> 0.09 | H76: (%)
D77: =D28&" "&H77 -> Total overproduction (MWh) | E77: =SUMIFS(F28:AK28,($F$5:$AK$5),"<>""",F28:AK28,"<>0") -> 0 | H77: (MWh)
D78: =D29&" "&H78 -> Total underproduction (MWh) | E78: =SUMIFS(F29:AK29,($F$5:$AK$5),"<>""",F29:AK29,"<>0") -> 0 | H78: (MWh)
D79: Average Net Energy production (MWh) | E79: =AVERAGEIFS(F25:AK25,($F$5:$AK$5),"<>""",F25:AK25,"<>0") -> 2344551.3 | H79: (MWh)
D80: Average Net Energy production corrected for over- and underproduction (MWh) | E80: =AVERAGEIFS(F30:AK30,($F$5:$AK$5),"<>""",F30:AK30,"<>0") -> 2344551.3 | H80: (MWh)
D81: Mean Net Energy production incl. Curtailment (MWh) | E81: ='Technical data'!$P$32*(1-Level_curtailment) -> 2344.5513 | H81: (MWh)
D82: Total investment subsidy | F82: =SUM(F60:AK60)*Exchangerate/10^6 -> 0 | G82: =SUM(F60:AK60)/10^6 -> 0 | H82: (million currency)
D83: Average annual GBI sudsidy | F83: =AVERAGE(F61:AK61)*Exchangerate/10^6 -> 0 | G83: =AVERAGE(F61:AK61)/10^6 -> 0 | H83: (million currency)
D84: NPV of government funding | F84: =IF(WACC_choice,(NPV(WACC,F62:AK62)),SUMPRODUCT($F$62:$AK$62,$F$21:$AK$21))*Exchangerate/10^6 -> 0 | G84: =IF(WACC_choice,(NPV(WACC,F62:AK62)),SUMPRODUCT($F$62:$AK$62,$F$21:$AK$21))/10^6 -> 0 | H84: (million currency)
D85: CAPEX share of LCoE | F85: =(F72/F73)*F74 -> 5.521165269 | G85: =(G72/G73)*G74 -> 0.07582590415 | H85: (currency/KWh)
D86: OPEX share of LCoE | F86: =(F71/F73)*F74 -> 1.905378337 | G86: =(G71/G73)*G74 -> 0.02616785192 | H86: (currency/KWh)

Sheet Technical data
B1: =MID(CELL("filename",A1),1+FIND("]",CELL("filename",A1)),99) -> Technical data
E3: Value | F3: Index
D4: Chosen Tech | E4: =INDEX($E$9:$H$9,F4) -> Offshore wind Tamil Nadu Site B | F4: =Tech_choice -> 2
D5: Chosen P | F5: =P_choice -> 1
D6: Capacity | E6: =NCAP -> 500
D8: Gross AEP
D9: GWh/MW | E9: Offshore wind Gujarat | F9: Offshore wind Tamil Nadu Site B | J9: Technical lifetime
D10: 2020 | E10: 3.73 | F10: 5.096 | J10: 2020 | K10: 25
D11: 2025 | E11: 3.787 | F11: 5.7254 | J11: 2025 | K11: 27
D12: 2030 | E12: 3.787 | F12: 5.7254 | J12: 2030 | K12: 30
D13: P50 | E13: =INDEX(E10:E12,MATCH('User Interface'!$D$14,$D$10:$D$12,0)) -> 3.787 | F13: =INDEX(F10:F12,MATCH('User Interface'!$D$14,$D$10:$D$12,0)) -> 5.7254 | G13: =INDEX(G10:G12,MATCH('User Interface'!$D$14,$D$10:$D$12,0)) -> 0 | H13: =INDEX(H10:H12,MATCH('User Interface'!$D$14,$D$10:$D$12,0)) -> 0 | K13: =INDEX(K10:K12,MATCH('User Interface'!D14,J10:J12,0)) -> 27
E15: =E9 -> Offshore wind Gujarat | F15: =F9 -> Offshore wind Tamil Nadu Site B | G15: =G9 -> 0 | H15: =H9 -> 0
D16: Wake loss | E16: 0.095 | F16: 0.1 | J16: Wake loss only
D17: Estimated uncertainty | E17: 0.2 | F17: 0.2
D18: Variation status | E18: =E17*AnnualVariation -> 0 | F18: =F17*AnnualVariation -> 0 | G18: =G17*AnnualVariation -> 0 | H18: =H17*AnnualVariation -> 0
D20: Probability | K20: Capacity factor at chosen Pxx
D21: % | E21: =E9 -> Offshore wind Gujarat | F21: =F9 -> Offshore wind Tamil Nadu Site B | G21: =G9 -> 0 | H21: =H9 -> 0 | K21: % | L21: =E9 -> Offshore wind Gujarat | M21: =F9 -> Offshore wind Tamil Nadu Site B | N21: =G9 -> 0 | O21: =H9 -> 0 | P21: Chosen Tech | U21: Site | V21: Wake loss | W21: Electrical losses and planned outages | X21: AEP (GWh) | Y21: CF
D22: 75 | E22: =NORMSINV($D22/100) -> 0.6744897502 | F22: =NORMSINV($D22/100) -> 0.6744897502 | G22: 0.6744897502 | H22: 0.6744897502 | K22: Before electrical losses | L22: =INDEX(E28:E31,$F$5)*1000/(24*365.25) -> 0.3909690851 | M22: =INDEX(F28:F31,$F$5)*1000/(24*365.25) -> 0.5878234086 | N22: =INDEX(G28:G31,$F$5)*1000/(24*365.25) -> 0 | O22: =INDEX(H28:H31,$F$5)*1000/(24*365.25) -> 0 | P22: =INDEX($L22:$O22,1,$F$4) -> 0.5878234086 | U22: =TRANSPOSE(E9:G9) -> Offshore wind Gujarat | V22: =TRANSPOSE(E16:G16) -> 0.095 | W22: =TRANSPOSE(E32:G32) -> 0.09 | X22: =TRANSPOSE(L28:N28) -> 1559.391925 | Y22: =TRANSPOSE(L23:N23) -> 0.3557818674
D23: 90 | E23: 1.281551566 | F23: 1.281551566 | G23: 1.281551566 | H23: 1.281551566 | K23: After electrical losses | L23: =L22*(1-E$32) -> 0.3557818674 | M23: =M22*(1-F$32) -> 0.5349193018 | N23: 0 | O23: 0 | P23: =INDEX($L23:$O23,1,$F$4) -> 0.5349193018 | U23: Offshore wind Tamil Nadu Site B | V23: 0.1 | W23: 0.09 | X23: 2344.5513 | Y23: 0.5349193018
D24: 95 | E24: 1.644853627 | F24: 1.644853627 | G24: 1.644853627 | H24: 1.644853627 | U24: 0 | V24: 0 | W24: 0.09 | X24: 0 | Y24: 0
D26: Net AEP before electrical losses and forced outages | K26: Net AEP after all losses
D27: GWh/MW | E27: =E21 -> Offshore wind Gujarat | F27: =F21 -> Offshore wind Tamil Nadu Site B | G27: =G21 -> 0 | H27: =H21 -> 0 | I27: Chosen tech | K27: GWh | L27: =E27 -> Offshore wind Gujarat | M27: =F27 -> Offshore wind Tamil Nadu Site B | N27: =G27 -> 0 | O27: =H27 -> 0 | P27: Chosen Tech | V27: GJ | W27: TN C | X27: TN B
D28: =D13 -> P50 | E28: =E13*(1-E16) -> 3.427235 | F28: =F13*(1-F16) -> 5.15286 | G28: 0 | H28: =H13*(1-H16) -> 0 | I28: =INDEX(E28:H28,($F$4)) -> 5.15286 | K28: =D28 -> P50 | L28: =E28*$E$6*(1-E$32) -> 1559.391925 | M28: 2344.5513 | N28: 0 | O28: 0 | P28: =INDEX(L28:O28,($F$4)) -> 2344.5513 | V28: 178 | W28: 160 | X28: 114
D29: P75 | E29: =E$28*(1-E22*E$18) -> 3.427235 | F29: =F$28*(1-F22*F$18) -> 5.15286 | G29: 0 | H29: 0 | I29: =INDEX(E29:H29,($F$4)) -> 5.15286 | K29: =D29 -> P75 | L29: 1559.391925 | M29: 2344.5513 | N29: 0 | O29: 0 | P29: =INDEX(L29:O29,($F$4)) -> 2344.5513 | U29: mUSD/y | V29: =V28*L32/1000 -> 277.5717627 | W29: =W28*M32/1000 -> 375.128208 | X29: =X28*N32/1000 -> 0
D30: P90 | E30: =E$28*(1-E23*E$18) -> 3.427235 | F30: =F$28*(1-F23*F$18) -> 5.15286 | G30: 0 | H30: 0 | I30: 5.15286 | K30: =D30 -> P90 | L30: 1559.391925 | M30: 2344.5513 | N30: 0 | O30: 0 | P30: =INDEX(L30:O30,($F$4)) -> 2344.5513 | U30: mINR/y | V30: =V29*'CAPEX & OPEX'!$G$49 -> 0 | W30: =W29*'CAPEX & OPEX'!$G$49 -> 0 | X30: =X29*'CAPEX & OPEX'!$G$49 -> 0
D31: P95 | E31: =E$28*(1-E24*E$18) -> 3.427235 | F31: =F$28*(1-F24*F$18) -> 5.15286 | G31: 0 | H31: 0 | I31: 5.15286 | K31: =D31 -> P95 | L31: 1559.391925 | M31: 2344.5513 | N31: 0 | O31: 0 | P31: 2344.5513
D32: Electrical losses and forced outages | E32: 0.09 | F32: 0.09 | G32: 0.09 | I32: =INDEX($I$28:$I$31,$F$5) -> 5.15286 | K32: Chosen P | L32: =INDEX(L$28:L$31,$F$5) -> 1559.391925 | M32: =INDEX(M$28:M$31,$F$5) -> 2344.5513 | N32: =INDEX(N$28:N$31,$F$5) -> 0 | O32: =INDEX(O$28:O$31,$F$5) -> 0 | P32: =INDEX(L32:O32,($F$4)) -> 2344.5513
K35: Net AEP timeseries
K36: GWh | L36: =L27 -> Offshore wind Gujarat | M36: =M27 -> Offshore wind Tamil Nadu Site B | N36: 0 | O36: 0 | P36: Chosen tech
I37: 0.4049111822 | J37: 1 | K37: =INDEX(Finance!$F$3:$AK$3,1,'Technical data'!$J37) -> 2025 | L37: =L$32*(1+NORMSINV($I37)*E$18) -> 1559.391925 | M37: =M$32*(1+NORMSINV($I37)*F$18) -> 2344.5513 | N37: =N$32*(1+NORMSINV($I37)*G$18) -> 0 | O37: =O$32*(1+NORMSINV($I37)*H$18) -> 0 | P37: =INDEX($L37:$O37,1,$F$4) -> 2344.5513
I38: 0.4328219899 | J38: 2 | K38: =INDEX(Finance!$F$3:$AK$3,1,'Technical data'!$J38) -> 2026 | L38: =L$32*(1+NORMSINV($I38)*E$18) -> 1559.391925 | M38: =M$32*(1+NORMSINV($I38)*F$18) -> 2344.5513 | N38: =N$32*(1+NORMSINV($I38)*G$18) -> 0 | O38: =O$32*(1+NORMSINV($I38)*H$18) -> 0 | P38: =INDEX($L38:$O38,1,$F$4) -> 2344.5513
I39: 0.1629186392 | J39: 3 | K39: =INDEX(Finance!$F$3:$AK$3,1,'Technical data'!$J39) -> 2027 | L39: 1559.391925 | M39: 2344.5513 | N39: 0 | O39: 0 | P39: 2344.5513
I40: 0.3790552101 | J40: 4 | K40: =INDEX(Finance!$F$3:$AK$3,1,'Technical data'!$J40) -> 2028 | L40: 1559.391925 | M40: 2344.5513 | N40: 0 | O40: 0 | P40: 2344.5513
I41: 0.2229612093 | J41: 5 | K41: =INDEX(Finance!$F$3:$AK$3,1,'Technical data'!$J41) -> 2029 | L41: 1559.391925 | M41: 2344.5513 | N41: 0 | O41: 0 | P41: 2344.5513
I42: 0.2642699073 | J42: 6 | K42: =INDEX(Finance!$F$3:$AK$3,1,'Technical data'!$J42) -> 2030 | L42: 1559.391925 | M42: 2344.5513 | N42: 0 | O42: 0 | P42: 2344.5513
I43: 0.1929888874 | J43: 7 | K43: =INDEX(Finance!$F$3:$AK$3,1,'Technical data'!$J43) -> 2031 | L43: 1559.391925 | M43: 2344.5513 | N43: 0 | O43: 0 | P43: 2344.5513
I44: 0.9885977329 | J44: 8 | K44: =INDEX(Finance!$F$3:$AK$3,1,'Technical data'!$J44) -> 2032 | L44: 1559.391925 | M44: 2344.5513 | N44: 0 | O44: 0 | P44: 2344.5513
I45: 0.01120273815 | J45: 9 | K45: =INDEX(Finance!$F$3:$AK$3,1,'Technical data'!$J45) -> 2033 | L45: 1559.391925 | M45: 2344.5513 | N45: 0 | O45: 0 | P45: 2344.5513
I46: 0.6087313747 | J46: 10 | K46: =INDEX(Finance!$F$3:$AK$3,1,'Technical data'!$J46) -> 2034 | L46: 1559.391925 | M46: 2344.5513 | N46: 0 | O46: 0 | P46: 2344.5513
I47: 0.986123096 | J47: 11 | K47: =INDEX(Finance!$F$3:$AK$3,1,'Technical data'!$J47) -> 2035 | L47: 1559.391925 | M47: 2344.5513 | N47: 0 | O47: 0 | P47: 2344.5513
I48: 0.4755770413 | J48: 12 | K48: =INDEX(Finance!$F$3:$AK$3,1,'Technical data'!$J48) -> 2036 | L48: 1559.391925 | M48: 2344.5513 | N48: 0 | O48: 0 | P48: 2344.5513
I49: 0.3670374395 | J49: 13 | K49: =INDEX(Finance!$F$3:$AK$3,1,'Technical data'!$J49) -> 2037 | L49: 1559.391925 | M49: 2344.5513 | N49: 0 | O49: 0 | P49: 2344.5513
I50: 0.7570910389 | J50: 14 | K50: =INDEX(Finance!$F$3:$AK$3,1,'Technical data'!$J50) -> 2038 | L50: 1559.391925 | M50: 2344.5513 | N50: 0 | O50: 0 | P50: 2344.5513
I51: 0.4610823365 | J51: 15 | K51: =INDEX(Finance!$F$3:$AK$3,1,'Technical data'!$J51) -> 2039 | L51: 1559.391925 | M51: 2344.5513 | N51: 0 | O51: 0 | P51: 2344.5513
I52: 0.00281678635 | J52: 16 | K52: =INDEX(Finance!$F$3:$AK$3,1,'Technical data'!$J52) -> 2040 | L52: 1559.391925 | M52: 2344.5513 | N52: 0 | O52: 0 | P52: 2344.5513
I53: 0.2781733021 | J53: 17 | K53: =INDEX(Finance!$F$3:$AK$3,1,'Technical data'!$J53) -> 2041 | L53: 1559.391925 | M53: 2344.5513 | N53: 0 | O53: 0 | P53: 2344.5513
I54: 0.4148470061 | J54: 18 | K54: =INDEX(Finance!$F$3:$AK$3,1,'Technical data'!$J54) -> 2042 | L54: 1559.391925 | M54: 2344.5513 | N54: 0 | O54: 0 | P54: 2344.5513
I55: 0.3322179354 | J55: 19 | K55: =INDEX(Finance!$F$3:$AK$3,1,'Technical data'!$J55) -> 2043 | L55: 1559.391925 | M55: 2344.5513 | N55: 0 | O55: 0 | P55: 2344.5513
I56: 0.3880458247 | J56: 20 | K56: =INDEX(Finance!$F$3:$AK$3,1,'Technical data'!$J56) -> 2044 | L56: 1559.391925 | M56: 2344.5513 | N56: 0 | O56: 0 | P56: 2344.5513
I57: 0.92588205 | J57: 21 | K57: =INDEX(Finance!$F$3:$AK$3,1,'Technical data'!$J57) -> 2045 | L57: 1559.391925 | M57: 2344.5513 | N57: 0 | O57: 0 | P57: 2344.5513
I58: 0.9898967089 | J58: 22 | K58: =INDEX(Finance!$F$3:$AK$3,1,'Technical data'!$J58) -> 2046 | L58: 1559.391925 | M58: 2344.5513 | N58: 0 | O58: 0 | P58: 2344.5513
I59: 0.3056437474 | J59: 23 | K59: =INDEX(Finance!$F$3:$AK$3,1,'Technical data'!$J59) -> 2047 | L59: 1559.391925 | M59: 2344.5513 | N59: 0 | O59: 0 | P59: 2344.5513
I60: 0.7328805929 | J60: 24 | K60: =INDEX(Finance!$F$3:$AK$3,1,'Technical data'!$J60) -> 2048 | L60: 1559.391925 | M60: 2344.5513 | N60: 0 | O60: 0 | P60: 2344.5513
I61: 0.8320002448 | J61: 25 | K61: =INDEX(Finance!$F$3:$AK$3,1,'Technical data'!$J61) -> 2049 | L61: 1559.391925 | M61: 2344.5513 | N61: 0 | O61: 0 | P61: 2344.5513
I62: 0.1701581837 | J62: 26 | K62: =INDEX(Finance!$F$3:$AK$3,1,'Technical data'!$J62) -> 2050 | L62: 1559.391925 | M62: 2344.5513 | N62: 0 | O62: 0 | P62: 2344.5513
I63: 0.008440635222 | J63: 27 | K63: =INDEX(Finance!$F$3:$AK$3,1,'Technical data'!$J63) -> 2051 | L63: 1559.391925 | M63: 2344.5513 | N63: 0 | O63: 0 | P63: 2344.5513
I64: 0.741192292 | J64: 28 | K64: =INDEX(Finance!$F$3:$AK$3,1,'Technical data'!$J64) -> 2052 | L64: 1559.391925 | M64: 2344.5513 | N64: 0 | O64: 0 | P64: 2344.5513
I65: 0.9239053342 | J65: 29 | K65: =INDEX(Finance!$F$3:$AK$3,1,'Technical data'!$J65) -> 2053 | L65: 1559.391925 | M65: 2344.5513 | N65: 0 | O65: 0 | P65: 2344.5513
I66: 0.5961431065 | J66: 30 | K66: =INDEX(Finance!$F$3:$AK$3,1,'Technical data'!$J66) -> 2054 | L66: 1559.391925 | M66: 2344.5513 | N66: 0 | O66: 0 | P66: 2344.5513
I67: 0.02602027782 | J67: 31 | K67: =INDEX(Finance!$F$3:$AK$3,1,'Technical data'!$J67) -> 2055 | L67: 1559.391925 | M67: 2344.5513 | N67: 0 | O67: 0 | P67: 2344.5513
I68: 0.6198931751 | J68: 32 | K68: =INDEX(Finance!$F$3:$AK$3,1,'Technical data'!$J68) -> 2056 | L68: 1559.391925 | M68: 2344.5513 | N68: 0 | O68: 0 | P68: 2344.5513
K69: Average | L69: =AVERAGE(L37:L68) -> 1559.391925 | M69: =AVERAGE(M37:M68) -> 2344.5513 | N69: =AVERAGE(N37:N68) -> 0 | O69: 0 | P69: =AVERAGE(P37:P68) -> 2344.5513

Sheet CAPEX & OPEX
B1: =MID(CELL("filename",A1),1+FIND("]",CELL("filename",A1)),99) -> CAPEX & OPEX
E3: Value | F3: Index
D4: Chosen Tech | E4: =INDEX($E$9:$H$9,1,F4) -> Offshore wind Tamil Nadu Site B | F4: =Tech_choice -> 2
D5: Capacity | E5: =Nom_cap -> 500
D6: AEP (MWh) | E6: =Net_AEP -> 2344.5513
D8: CAPEX | E8: Offshore wind Gujarat | F8: Offshore wind Tamil Nadu Site B | K8: Taxes | P8: CAPEX | U8: Export system | AB8: Cost development
D9: mUSD/MW | E9: ='Technical data'!E9 -> Offshore wind Gujarat | F9: ='Technical data'!F9 -> Offshore wind Tamil Nadu Site B | G9: ='Technical data'!G9 -> 0 | H9: ='Technical data'!H9 -> 0 | I9: Chosen | K9: % | L9: VAT | M9: Duties | N9: Total | P9: mUSD | Q9: CAPEX | R9: Taxes | S9: Total | V9: % of CAPEX | W9: Include in Export system | Y9: Included | Z9: Not included | AC9: =E9 -> Offshore wind Gujarat | AD9: =F9 -> Offshore wind Tamil Nadu Site B | AE9: =G9 -> 0 | AF9: =H9 -> 0
D10: DEVEX | E10: 0.09644305702 | F10: 0.09284029914 | I10: =INDEX($E10:$H10,1,$F$4)*(1+$E$37) -> 0.07898353808 | K10: =D10 -> DEVEX | L10: 0.05 | M10: 0.13 | N10: =(1+L10*VAT_choice)*(1+M10*Duties_choice)-1 -> 0 | P10: =K10 -> DEVEX | Q10: =I10*$E$5 -> 39.49176904 | R10: =Q10*N10 -> 0 | S10: =(Q10+R10) -> 39.49176904 | U10: OSS | V10: 0.072 | W10: Yes | X10: =V10/SUM($V$10:$V$12) -> 0.4137931034 | Y10: =$X10*IF($W10="Yes",1,0) -> 0.4137931034 | Z10: =$X10*IF($W10="No",1,0) -> 0 | AB10: 2020 | AC10: 0 | AD10: 0
D11: PM | E11: 0.09065959979 | F11: 0.08727289061 | I11: =INDEX($E11:$H11,1,$F$4)*(1+$E$37) -> 0.07424708604 | K11: PM | L11: 0.05 | M11: 0.13 | N11: =(1+L11*VAT_choice)*(1+M11*Duties_choice)-1 -> 0 | P11: =K11 -> PM | Q11: 37.12354302 | R11: =Q11*N11 -> 0 | S11: =(Q11+R11) -> 37.12354302 | U11: Export cable | V11: 0.075 | W11: Yes | X11: =V11/SUM($V$10:$V$12) -> 0.4310344828 | Y11: =$X11*IF($W11="Yes",1,0) -> 0.4310344828 | Z11: =$X11*IF($W11="No",1,0) -> 0 | AB11: 2025 | AC11: -0.1810344828 | AD11: -0.1492537313
D12: Foundation | E12: 0.2135971433 | F12: 0.2056179397 | I12: 0.1749286949 | K12: Foundation | L12: 0.05 | M12: 0.13 | N12: 0 | P12: Foundation | Q12: 87.46434747 | R12: 0 | S12: 87.46434747 | U12: ONSS | V12: 0.027 | W12: Yes | X12: =V12/SUM($V$10:$V$12) -> 0.1551724138 | Y12: 0.1551724138 | Z12: 0 | AB12: 2030 | AC12: -0.4224137931 | AD12: -0.4
D13: WTG | E13: 1.564659645 | F13: 1.506209715 | I13: 1.281402295 | K13: WTG | L13: 0.05 | M13: 0.13 | N13: 0 | P13: WTG | Q13: 640.7011476 | R13: 0 | S13: 640.7011476 | Y13: =SUM(Y10:Y12) -> 1 | Z13: =SUM(Z10:Z12) -> 0
D14: Array cabling | E14: 0.3438812406 | F14: 0.3310351023 | I14: =(INDEX($E14:$H14,1,$F$4)+INDEX($E15:$H15,1,$F$4)*$Z$13)*(1+$E$37) -> 0.2816268781 | K14: Array cabling | L14: 0.05 | M14: 0.13 | N14: 0 | P14: Array cabling | Q14: 140.813439 | R14: 0 | S14: 140.813439
D15: Export system | E15: 0.6049183641 | F15: 0.582320839 | I15: =INDEX($E15:$H15,1,$F$4)*(1+$E$37)*$Y$13 -> 0.495407281 | K15: Export system | L15: 0.05 | M15: 0.13 | N15: 0 | P15: Export system | Q15: =I15*$E$5 -> 247.7036405 | R15: =Q15*N15 -> 0 | S15: =(Q15+R15) -> 247.7036405
D16: Installation | E16: 0.5658409504 | F16: 0.5447032138 | I16: 0.4634042266 | K16: Installation | L16: 0.05 | M16: 0.13 | N16: 0 | P16: Installation | Q16: 231.7021133 | R16: 0 | S16: 231.7021133
D17: With cost development | I17: =SUM(I10:I16) -> 2.85 | S17: =SUM(S10:S16)/E5 -> 2.85
D18: Without cost development | E18: =SUM(E10:E16) -> 3.48 | F18: =SUM(F10:F16) -> 3.35 | G18: =SUM(G10:G16) -> 0 | H18: =SUM(H10:H16) -> 0 | I18: =INDEX($E18:$H18,1,$F$4) -> 3.35
D20: OPEX | K20: Taxes | P20: OPEX
E21: =E9 -> Offshore wind Gujarat | F21: =F9 -> Offshore wind Tamil Nadu Site B | G21: =G9 -> 0 | H21: =H9 -> 0 | I21: Chosen | K21: % | L21: VAT | M21: Duties | N21: Total | Q21: OPEX | R21: Taxes | S21: Total
D22: USD/MWh | I22: =INDEX($E22:$H22,1,$F$4)*(1+$E$44) -> 0 | K22: =D22 -> USD/MWh | L22: 0.05 | M22: 0 | N22: =(1+L22*VAT_choice)*(1+M22*Duties_choice)-1 -> 0 | P22: =K22 -> USD/MWh | Q22: =I22 -> 0 | R22: =Q22*N22 -> 0 | S22: =(Q22+R22) -> 0
D23: USD/MWh | I23: =INDEX($E23:$H23,1,$F$4)*(1+$E$44) -> 0 | K23: =D23 -> USD/MWh | N23: 0 | P23: =K23 -> USD/MWh | Q23: =I23 -> 0 | R23: =Q23*N23 -> 0 | S23: =(Q23+R23) -> 0
D24: USD/MWh | I24: 0 | K24: USD/MWh | N24: 0 | P24: USD/MWh | Q24: 0 | R24: 0 | S24: 0
D25: USD/MW | E25: 98000 | F25: 98000 | I25: 63700 | K25: USD/MW | L25: 0.05 | N25: 0 | P25: USD/MW | Q25: =I25 -> 63700 | R25: 0 | S25: 63700
D26: USD/MW | I26: 0 | K26: USD/MW | N26: 0 | P26: USD/MW | Q26: =I26 -> 0 | R26: 0 | S26: 0
D27: USD/MW | I27: 0 | K27: USD/MW | N27: 0 | P27: USD/MW | Q27: 0 | R27: 0 | S27: 0
D28: With cost development | I28: =SUM(I25:I27) -> 63700
D29: Without cost development | I29: =I28/(1+$E$44) -> 98000
D31: Cost Development | I31: =D31 -> Cost Development | J31: =G33 -> (mINR/MW) | K31: =G40 -> (INR/MW)
I32: Year | J32: =D33 -> CAPEX | K32: =D40 -> OPEX
D33: CAPEX | F33: (mUSD/MW) | G33: (mINR/MW) | I33: =D34 -> 2020 | J33: =G34 -> 243.9259229 | K33: =G41 -> 7135743.417
D34: 2020 | E34: =INDEX(AC10:AF10,$F$4) -> 0 | F34: =(1+E34)*$I$18 -> 3.35 | G34: =F34*Exchangerate -> 243.9259229 | I34: =D35 -> 2025 | J34: =G35 -> 207.5190688 | K34: =G42 -> 4638233.221
D35: 2025 | E35: =INDEX(AC11:AF11,$F$4) -> -0.1492537313 | F35: =(1+E35)*$I$18 -> 2.85 | G35: =F35*Exchangerate -> 207.5190688 | I35: =D36 -> 2030 | J35: 146.3555537 | K35: 3853301.445
D36: 2030 | E36: =INDEX(AC12:AF12,$F$4) -> -0.4 | F36: 2.01 | G36: =F36*Exchangerate -> 146.3555537
D37: ='User Interface'!D14 -> 2025 | E37: =INDEX(E34:E36,MATCH(D37,D34:D36,0)) -> -0.1492537313
D40: OPEX | F40: (USD/MW) | G40: (INR/MW)
D41: 2020 | E41: 0 | F41: =(1+E41)*$I$29 -> 98000 | G41: =F41*Exchangerate -> 7135743.417
D42: 2025 | E42: -0.35 | F42: =(1+E42)*$I$29 -> 63700 | G42: =F42*Exchangerate -> 4638233.221
D43: 2030 | E43: -0.46 | F43: 52920 | G43: =F43*Exchangerate -> 3853301.445
D44: ='User Interface'!D14 -> 2025 | E44: =INDEX(E41:E43,MATCH(D44,D41:D43,0)) -> -0.35

Sheet Exchange rate
B1: =MID(CELL("filename",A1),1+FIND("]",CELL("filename",A1)),99) -> Exchange rate
B4: Date | C4: Indian Rupee/USD | L4: INR
B5: 1973-01-01 | C5: 8.0041 | E5: =B592-B5 -> 17866 | F5: Days | L5: USD
B6: 1973-02-01 | C6: 7.7538 | E6: =E5/365.25 -> 48.91444216 | F6: Years
B7: 1973-03-01 | C7: 7.5465
B8: 1973-04-01 | C8: 7.5462
B9: 1973-05-01 | C9: 7.4927
B10: 1973-06-01 | C10: 7.2719 | E10: 2019-01-01 | F10: Startdate
B11: 1973-07-01 | C11: 7.351 | E11: =MATCH(E10,B5:B592,0) -> 553 | F11: Index observation
B12: 1973-08-01 | C12: 7.5643 | E12: =COUNT(C5:C592) -> 588 | F12: Index last observation
B13: 1973-09-01 | C13: 7.7 | E13: =AVERAGE(OFFSET(C5,E11-1,0,E12-E11+1)) -> 72.81370833 | F13: Mean
B14: 1973-10-01 | C14: 7.7271 | E14: =_xlfn.STDEV.P(OFFSET(C5,E11-1,0,E12-E11+1)) -> 2.033615568 | F14: Standard deviation
B15: 1973-11-01 | C15: 7.834
B16: 1973-12-01 | C16: 8.11 | E16: =IF(I20=1,E13,IF(G26="",0,G26)) -> 72.81370833 | F16: P50 exchange rate
B17: 1974-01-01 | C17: 8.4377 | E17: =E16/INDEX($C$5:$C$592,E12)-1 -> -0.03423434596 | F17: P50 exchange rate fall
B18: 1974-02-01 | C18: 8.2444
B19: 1974-03-01 | C19: 8.0567 | E19: =INDEX($C$5:$C$592,E12) -> 75.3948 | F19: Most current exchange rate
B20: 1974-04-01 | C20: 7.8655 | I20: 1
B21: 1974-05-01 | C21: 7.7855
B22: 1974-06-01 | C22: 7.849
B23: 1974-07-01 | C23: 7.8345
B24: 1974-08-01 | C24: 7.9841 | E24: Define exchange rate
B25: 1974-09-01 | C25: 8.121 | F25: Empirical exchange rate | G25: =E13 -> 72.81370833
B26: 1974-10-01 | C26: 8.0505 | F26: User defined exchange rate
B27: 1974-11-01 | C27: 8.0644
B28: 1974-12-01 | C28: 8.0952 | F28: =IF(I20=2,IF(G26="","Please define exchange rate",""),"") -> 
B29: 1975-01-01 | C29: 8.13
B30: 1975-02-01 | C30: 7.9717
B31: 1975-03-01 | C31: 7.75
B32: 1975-04-01 | C32: 7.8841
B33: 1975-05-01 | C33: 8.07
B34: 1975-06-01 | C34: 8.1914
B35: 1975-07-01 | C35: 8.4895
B36: 1975-08-01 | C36: 8.7895
B37: 1975-09-01 | C37: 8.8648
B38: 1975-10-01 | C38: 8.8945
B39: 1975-11-01 | C39: 8.8994
B40: 1975-12-01 | C40: 8.9827
B41: 1976-01-01 | C41: 8.9471
B42: 1976-02-01 | C42: 8.9389
B43: 1976-03-01 | C43: 8.9648
B44: 1976-04-01 | C44: 8.9918
B45: 1976-05-01 | C45: 9.0265
B46: 1976-06-01 | C46: 9.1109
B47: 1976-07-01 | C47: 8.9233
B48: 1976-08-01 | C48: 8.9755
B49: 1976-09-01 | C49: 9.0614
B50: 1976-10-01 | C50: 8.896
B51: 1976-11-01 | C51: 8.9658
B52: 1976-12-01 | C52: 8.8535
B53: 1977-01-01 | C53: 8.9052
B54: 1977-02-01 | C54: 8.8626
B55: 1977-03-01 | C55: 8.8417
B56: 1977-04-01 | C56: 8.8429
B57: 1977-05-01 | C57: 8.8338
B58: 1977-06-01 | C58: 8.8605
B59: 1977-07-01 | C59: 8.8163
B60: 1977-08-01 | C60: 8.7213
B61: 1977-09-01 | C61: 8.73
B62: 1977-10-01 | C62: 8.615
B63: 1977-11-01 | C63: 8.6405
B64: 1977-12-01 | C64: 8.5371
B65: 1978-01-01 | C65: 8.201
B66: 1978-02-01 | C66: 8.1094
B67: 1978-03-01 | C67: 8.2078
B68: 1978-04-01 | C68: 8.465
B69: 1978-05-01 | C69: 8.5827
B70: 1978-06-01 | C70: 8.4041
B71: 1978-07-01 | C71: 8.1665
B72: 1978-08-01 | C72: 8.0139
B73: 1978-09-01 | C73: 8.0365
B74: 1978-10-01 | C74: 7.911
B75: 1978-11-01 | C75: 8.0335
B76: 1978-12-01 | C76: 8.216
B77: 1979-01-01 | C77: 8.2091
B78: 1979-02-01 | C78: 8.25
B79: 1979-03-01 | C79: 8.2418
B80: 1979-04-01 | C80: 8.2062
B81: 1979-05-01 | C81: 8.2891
B82: 1979-06-01 | C82: 8.119
B83: 1979-07-01 | C83: 7.9067
B84: 1979-08-01 | C84: 8.0113
B85: 1979-09-01 | C85: 8.1358
B86: 1979-10-01 | C86: 8.2259
B87: 1979-11-01 | C87: 8.1926
B88: 1979-12-01 | C88: 8.0995
B89: 1980-01-01 | C89: 7.9882
B90: 1980-02-01 | C90: 7.9816
B91: 1980-03-01 | C91: 8.1519
B92: 1980-04-01 | C92: 8.07
B93: 1980-05-01 | C93: 7.8586
B94: 1980-06-01 | C94: 7.8424
B95: 1980-07-01 | C95: 7.7664
B96: 1980-08-01 | C96: 7.7824
B97: 1980-09-01 | C97: 7.7495
B98: 1980-10-01 | C98: 7.7323
B99: 1980-11-01 | C99: 7.7712
B100: 1980-12-01 | C100: 7.9314
B101: 1981-01-01 | C101: 7.9576
B102: 1981-02-01 | C102: 8.2211
B103: 1981-03-01 | C103: 8.2432
B104: 1981-04-01 | C104: 8.2918
B105: 1981-05-01 | C105: 8.4045
B106: 1981-06-01 | C106: 8.5564
B107: 1981-07-01 | C107: 8.9065
B108: 1981-08-01 | C108: 9.0605
B109: 1981-09-01 | C109: 9.1152
B110: 1981-10-01 | C110: 9.1348
B111: 1981-11-01 | C111: 9.135
B112: 1981-12-01 | C112: 9.1305
B113: 1982-01-01 | C113: 9.1525
B114: 1982-02-01 | C114: 9.2144
B115: 1982-03-01 | C115: 9.2935
B116: 1982-04-01 | C116: 9.3923
B117: 1982-05-01 | C117: 9.2965
B118: 1982-06-01 | C118: 9.4668
B119: 1982-07-01 | C119: 9.5633
B120: 1982-08-01 | C120: 9.5741
B121: 1982-09-01 | C121: 9.6495
B122: 1982-10-01 | C122: 9.7005
B123: 1982-11-01 | C123: 9.7968
B124: 1982-12-01 | C124: 9.6926
B125: 1983-01-01 | C125: 9.7938
B126: 1983-02-01 | C126: 9.9184
B127: 1983-03-01 | C127: 9.9652
B128: 1983-04-01 | C128: 9.9824
B129: 1983-05-01 | C129: 9.9895
B130: 1983-06-01 | C130: 10.0491
B131: 1983-07-01 | C131: 10.0875
B132: 1983-08-01 | C132: 10.1874
B133: 1983-09-01 | C133: 10.2005
B134: 1983-10-01 | C134: 10.229
B135: 1983-11-01 | C135: 10.3784
B136: 1983-12-01 | C136: 10.4895
B137: 1984-01-01 | C137: 10.7152
B138: 1984-02-01 | C138: 10.7437
B139: 1984-03-01 | C139: 10.7145
B140: 1984-04-01 | C140: 10.82
B141: 1984-05-01 | C141: 11.0168
B142: 1984-06-01 | C142: 11.0638
B143: 1984-07-01 | C143: 11.3714
B144: 1984-08-01 | C144: 11.5561
B145: 1984-09-01 | C145: 11.8584
B146: 1984-10-01 | C146: 12.0268
B147: 1984-11-01 | C147: 12.0784
B148: 1984-12-01 | C148: 12.2925
B149: 1985-01-01 | C149: 12.6119
B150: 1985-02-01 | C150: 12.9217
B151: 1985-03-01 | C151: 12.8614
B152: 1985-04-01 | C152: 12.4005
B153: 1985-05-01 | C153: 12.5005
B154: 1985-06-01 | C154: 12.4405
B155: 1985-07-01 | C155: 12.0314
B156: 1985-08-01 | C156: 11.8977
B157: 1985-09-01 | C157: 12.1255
B158: 1985-10-01 | C158: 12.0332
B159: 1985-11-01 | C159: 12.1011
B160: 1985-12-01 | C160: 12.1524
B161: 1986-01-01 | C161: 12.2433
B162: 1986-02-01 | C162: 12.37
B163: 1986-03-01 | C163: 12.289
B164: 1986-04-01 | C164: 12.3932
B165: 1986-05-01 | C165: 12.4657
B166: 1986-06-01 | C166: 12.5986
B167: 1986-07-01 | C167: 12.5077
B168: 1986-08-01 | C168: 12.5667
B169: 1986-09-01 | C169: 12.6757
B170: 1986-10-01 | C170: 12.8486
B171: 1986-11-01 | C171: 13.0761
B172: 1986-12-01 | C172: 13.1486
B173: 1987-01-01 | C173: 13.0295
B174: 1987-02-01 | C174: 13.0621
B175: 1987-03-01 | C175: 12.9236
B176: 1987-04-01 | C176: 12.8145
B177: 1987-05-01 | C177: 12.666
B178: 1987-06-01 | C178: 12.8368
B179: 1987-07-01 | C179: 13.0126
B180: 1987-08-01 | C180: 13.0852
B181: 1987-09-01 | C181: 12.9933
B182: 1987-10-01 | C182: 13.0429
B183: 1987-11-01 | C183: 12.9721
B184: 1987-12-01 | C184: 12.9345
B185: 1988-01-01 | C185: 13.0395
B186: 1988-02-01 | C186: 13.065
B187: 1988-03-01 | C187: 12.9791
B188: 1988-04-01 | C188: 13.1576
B189: 1988-05-01 | C189: 13.3157
B190: 1988-06-01 | C190: 13.7859
B191: 1988-07-01 | C191: 14.0795
B192: 1988-08-01 | C192: 14.217
B193: 1988-09-01 | C193: 14.4895
B194: 1988-10-01 | C194: 14.72
B195: 1988-11-01 | C195: 14.966
B196: 1988-12-01 | C196: 15.019
B197: 1989-01-01 | C197: 15.0925
B198: 1989-02-01 | C198: 15.2405
B199: 1989-03-01 | C199: 15.4674
B200: 1989-04-01 | C200: 15.718
B201: 1989-05-01 | C201: 16.1018
B202: 1989-06-01 | C202: 16.4195
... 391 more rows

Sheet Inflation
B1: =MID(CELL("filename",A1),1+FIND("]",CELL("filename",A1)),99) -> Inflation
B3: Inflation - Projection
B4: Inflation, consumer prices (annual %) | D4: 2000 | E4: 2001 | F4: 2002 | G4: 2003 | H4: 2004 | I4: 2005 | J4: 2006 | K4: 2007 | L4: 2008 | M4: 2009 | N4: 2010 | O4: 2011 | P4: 2012 | Q4: 2013 | R4: 2014 | S4: 2015 | T4: 2016 | U4: 2017 | V4: 2018 | W4: 2019 | X4: 2020 | Y4: 2021 | Z4: 2022 | AA4: 2023 | AB4: 2024 | AC4: 2025 | AD4: 2026 | AE4: 2027 | AF4: 2028 | AG4: 2029 | AH4: 2030 | AI4: 2031 | AJ4: 2032 | AK4: 2033 | AL4: 2034 | AM4: 2035 | AN4: 2036 | AO4: 2037 | AP4: 2038 | AQ4: 2039 | AR4: 2040 | AS4: 2041 | AT4: 2042 | AU4: 2043 | AV4: 2044 | AW4: 2045 | AX4: 2046 | AY4: 2047 | AZ4: 2048 | BA4: 2049 | BB4: 2050 | BC4: 2051 | BD4: 2052 | BE4: 2053 | BF4: 2054 | BG4: 2055 | BH4: 2056 | BI4: 2057 | BJ4: 2058 | BK4: 2059 | BL4: 2060 | BM4: 2061
D5: =IF(AND(D$4>$K$22,$N$29=2),$F$16,IF(D$4>$K$22,$K$24,INDEX($F$11:$AC$11,MATCH(D$4,$F$10:$AC$10,0)))) -> 3.73832 | E5: 4.27928 | F5: 4.10367 | G5: 3.73444 | H5: 4 | I5: 4.23077 | J5: 6.2 | K5: 6.4 | L5: 9.02256 | M5: 12.24138 | N5: 10.44547 | O5: 10.44547 | P5: 9.89727 | Q5: 12.2 | R5: 5.793226381 | S5: 4.886267902 | T5: 4.578313253 | U5: 3.686635945 | V5: 3.4 | W5: 4.8 | X5: 6.5 | Y5: 5 | Z5: 5 | AA5: 5 | AB5: 5 | AC5: 5 | AD5: 5 | AE5: 5 | AF5: 5 | AG5: 5 | AH5: 5 | AI5: 5 | AJ5: =IF(AND(AJ$4>$K$22,$N$29=2),$F$16,IF(AJ$4>$K$22,$K$24,INDEX($F$11:$AC$11,MATCH(AJ$4,$F$10:$AC$10,0)))) -> 5 | AK5: 5 | AL5: 5 | AM5: 5 | AN5: 5 | AO5: 5 | AP5: 5 | AQ5: 5 | AR5: 5 | AS5: 5 | AT5: 5 | AU5: 5 | AV5: 5 | AW5: 5 | AX5: 5 | AY5: 5 | AZ5: 5 | BA5: 5 | BB5: 5 | BC5: 5 | BD5: 5 | BE5: 5 | BF5: 5 | BG5: 5 | BH5: 5 | BI5: 5 | BJ5: 5 | BK5: 5 | BL5: 5 | BM5: 5
F10: 2000 | G10: 2001 | H10: 2002 | I10: 2003 | J10: 2004 | K10: 2005 | L10: 2006 | M10: 2007 | N10: 2008 | O10: 2009 | P10: 2010 | Q10: 2011 | R10: 2012 | S10: 2013 | T10: 2014 | U10: 2015 | V10: 2016 | W10: 2017 | X10: 2018 | Y10: 2019 | Z10: 2020
B11: India | C11: Price Indexes (% annual change) | D11: Consumer price index (national) | F11: 3.73832 | G11: 4.27928 | H11: 4.10367 | I11: 3.73444 | J11: 4 | K11: 4.23077 | L11: 6.2 | M11: 6.4 | N11: 9.02256 | O11: 12.24138 | P11: 10.44547 | Q11: =P11 -> 10.44547 | R11: 9.89727 | S11: 12.2 | T11: 5.793226381 | U11: 4.886267902 | V11: 4.578313253 | W11: 3.686635945 | X11: 3.4 | Y11: 4.8 | Z11: 6.5
B12: Source: https://data.adb.org/dataset/india-key-indicators | Q12: Value not included in source
B14: Define exchange rate
C15: ="Average inflation of the period "&K20&"-"&K22 -> Average inflation of the period 2015-2020
C16: User defined exchange rate | F16: 5
C17: =IF(AND(N29=2,F16=""),"Please define inflation rate","") -> 
J20: From year | K20: =K22-5 -> 2015
J21: First year | K21: =MIN(F10:BJ10) -> 2000
J22: Last year | K22: =MAX(F10:BJ10) -> 2020
J24: Average | K24: =AVERAGE(OFFSET($F$11,0,K20-K21+1,1,K22-K20)) -> 4.59298984
J25: Minimum | K25: =MIN(OFFSET($F$11,0,K20-K21+1,1,K22-K20)) -> 3.4
J26: Maximum | K26: =MAX(OFFSET($F$11,0,K20-K21+1,1,K22-K20)) -> 6.5
J27: stdev | K27: =_xlfn.STDEV.P(OFFSET($F$11,0,K20-K21+1,1,K22-K20)) -> 1.088527308
N29: 2

Sheet Sensitivity
B1: Sensitivity
C3: No. of scens | D3: =MAX(C9:C117) -> 96
C4: Active scen | D4: 1
C6: Input | T6: Output
D7: CAPEX Total | E7: OPEX Total | F7: Net AEP | G7: Lifetime extension | H7: Construction rate | I7: Senior rate | J7: Senior tenor | K7: Junior Tenor | L7: Junior rate | M7: Cost of Equity | N7: Inflation rate | O7: Technology | P7: Uncertainty | U7: Scen | V7: Technology | W7: Uncertainty | X7: LCOE
C8: Chosen sensitivity | D8: =INDEX(D9:D117,Scen) -> 0 | E8: =INDEX(E9:E117,Scen) -> 0 | F8: =INDEX(F9:F117,Scen) -> 0 | G8: 0 | H8: 0 | I8: 0 | J8: 0 | K8: =INDEX(K9:K117,Scen) -> 0 | L8: 0 | M8: =INDEX(M9:M117,Scen) -> 0 | N8: =INDEX(N9:N117,Scen)*100 -> 0 | O8: =IF(INDEX($O$9:$O$117,Scen)>0,INDEX($O$9:$O$117,Scen),Tech_choice) -> 2 | P8: =IF(INDEX($P$9:$P$117,Scen)>0,INDEX($P$9:$P$117,Scen),P_choice) -> 1 | T8: Scenario | U8: =Scen -> 1 | V8: =INDEX(Lists!$B$4:$B$7,scen_technology,1) -> Offshore wind Tamil Nadu Site B | W8: =INDEX(Lists!D4:D8,Scen_uncertainty,1) -> P50 | X8: =Results!$C$11 -> 7.426543606
B9: Base | C9: 1 | T9: 1 | U9: 1 | V9: Offshore wind Gujarat | W9: P50 | X9: 13.71106257
C10: =C9+1 -> 2 | F10: -0.1 | O10: 1 | T10: =T9+1 -> 2 | U10: 2 | V10: Offshore wind Gujarat | W10: P50 | X10: 15.23451397
C11: =C10+1 -> 3 | O11: 1 | T11: =T10+1 -> 3 | U11: 3 | V11: Offshore wind Gujarat | W11: P50 | X11: 13.71106257
C12: 4 | F12: 0.1 | O12: 1 | T12: 4 | U12: 4 | V12: Offshore wind Gujarat | W12: P50 | X12: 12.46460234
C13: 5 | F13: 0.2 | O13: 1 | T13: 5 | U13: 5 | V13: Offshore wind Gujarat | W13: P50 | X13: 11.42588548
C14: 6 | D14: -0.3 | F14: -0.1 | O14: 1 | T14: 6 | U14: 6 | V14: Offshore wind Gujarat | W14: P50 | X14: 12.00888305
C15: 7 | D15: -0.3 | O15: 1 | T15: 7 | U15: 7 | V15: Offshore wind Gujarat | W15: P50 | X15: 10.80799474
C16: 8 | D16: -0.3 | F16: 0.1 | O16: 1 | T16: 8 | U16: 8 | V16: Offshore wind Gujarat | W16: P50 | X16: 9.825449766
C17: 9 | D17: -0.3 | F17: 0.2 | O17: 1 | T17: 9 | U17: 9 | V17: Offshore wind Gujarat | W17: P50 | X17: 9.006662285
C18: 10 | D18: -0.4 | F18: -0.1 | O18: 1 | T18: 10 | U18: 10 | V18: Offshore wind Gujarat | W18: P50 | X18: 10.93367274
C19: 11 | D19: -0.4 | O19: 1 | T19: 11 | U19: 11 | V19: Offshore wind Gujarat | W19: P50 | X19: 9.840305465
C20: 12 | D20: -0.4 | F20: 0.1 | O20: 1 | T20: 12 | U20: 12 | V20: Offshore wind Gujarat | W20: P50 | X20: 8.945732241
C21: 13 | D21: -0.4 | F21: 0.2 | O21: 1 | T21: 13 | U21: 13 | V21: Offshore wind Gujarat | W21: P50 | X21: 8.200254554
C22: 14 | F22: -0.1 | O22: 2 | T22: 14 | U22: 14 | V22: Offshore wind Tamil Nadu Site B | W22: P50 | X22: 10.91717399
C23: 15 | O23: 2 | T23: 15 | U23: 15 | V23: Offshore wind Tamil Nadu Site B | W23: P50 | X23: 9.825456595
C24: 16 | F24: 0.1 | O24: 2 | T24: 16 | U24: 16 | V24: Offshore wind Tamil Nadu Site B | W24: P50 | X24: 8.932233268
C25: 17 | F25: 0.2 | O25: 2 | T25: 17 | U25: 17 | V25: Offshore wind Tamil Nadu Site B | W25: P50 | X25: 11.42588548
C26: 18 | D26: -0.3 | F26: -0.1 | O26: 2 | T26: 18 | U26: 18 | V26: Offshore wind Tamil Nadu Site B | W26: P50 | X26: 8.631755595
C27: 19 | D27: -0.3 | O27: 2 | T27: 19 | U27: 19 | V27: Offshore wind Tamil Nadu Site B | W27: P50 | X27: 7.768580036
C28: 20 | D28: -0.3 | F28: 0.1 | O28: 2 | T28: 20 | U28: 20 | V28: Offshore wind Tamil Nadu Site B | W28: P50 | X28: 7.062345487
C29: 21 | D29: -0.3 | F29: 0.2 | O29: 2 | T29: 21 | U29: 21 | V29: Offshore wind Tamil Nadu Site B | W29: P50 | X29: 6.473816696
C30: 22 | D30: -0.4 | F30: -0.1 | O30: 2 | T30: 22 | U30: 22 | V30: Offshore wind Tamil Nadu Site B | W30: P50 | X30: 7.869949462
C31: 23 | D31: -0.4 | O31: 2 | T31: 23 | U31: 23 | V31: Offshore wind Tamil Nadu Site B | W31: P50 | X31: 7.082954516
C32: 24 | D32: -0.4 | F32: 0.1 | O32: 2 | T32: 24 | U32: 24 | V32: Offshore wind Tamil Nadu Site B | W32: P50 | X32: 6.43904956
C33: 25 | D33: -0.4 | F33: 0.2 | O33: 2 | T33: 25 | U33: 25 | V33: Offshore wind Tamil Nadu Site B | W33: P50 | X33: 5.902462097
C34: 26 | F34: -0.1 | O34: 3 | T34: 26 | U34: 26 | V34: IREDA input | W34: P50 | X34: 10.91717399
C35: 27 | O35: 3 | T35: 27 | U35: 27 | V35: IREDA input | W35: P50 | X35: 10.30985519
C36: 28 | F36: 0.1 | O36: 3 | T36: 28 | U36: 28 | V36: IREDA input | W36: P50 | X36: 12.46460234
C37: 29 | F37: 0.2 | O37: 3 | T37: 29 | U37: 29 | V37: IREDA input | W37: P50 | X37: 8.591545995
C38: 30 | D38: -0.3 | F38: -0.1 | O38: 3 | T38: 30 | U38: 30 | V38: IREDA input | W38: P50 | X38: 8.644941661
C39: 31 | D39: -0.3 | O39: 3 | T39: 31 | U39: 31 | V39: IREDA input | W39: P50 | X39: 7.780447495
C40: 32 | D40: -0.3 | F40: 0.1 | O40: 3 | T40: 32 | U40: 32 | V40: IREDA input | W40: P50 | X40: 7.073134087
C41: 33 | D41: -0.3 | F41: 0.2 | O41: 3 | T41: 33 | U41: 33 | V41: IREDA input | W41: P50 | X41: 6.483706246
C42: 34 | D42: -0.4 | F42: -0.1 | O42: 3 | T42: 34 | U42: 34 | V42: IREDA input | W42: P50 | X42: 7.708123995
C43: 35 | D43: -0.4 | O43: 3 | T43: 35 | U43: 35 | V43: IREDA input | W43: P50 | X43: 6.937311596
C44: 36 | D44: -0.4 | F44: 0.1 | O44: 3 | T44: 36 | U44: 36 | V44: IREDA input | W44: P50 | X44: 6.306646905
C45: 37 | D45: -0.4 | F45: 0.2 | O45: 3 | T45: 37 | U45: 37 | V45: IREDA input | W45: P50 | X45: 5.781092996
C46: 38 | F46: -0.1 | O46: 4 | T46: 38 | U46: 38 | V46: 0 | W46: P50
C47: 39 | O47: 4 | T47: 39 | U47: 39 | V47: 0 | W47: P50
C48: 40 | F48: 0.1 | O48: 4 | T48: 40 | U48: 40 | V48: 0 | W48: P50
C49: 41 | F49: 0.2 | O49: 4 | T49: 41 | U49: 41 | V49: 0 | W49: P50
C50: 42 | D50: -0.3 | F50: -0.1 | O50: 4 | T50: 42 | U50: 42 | V50: 0 | W50: P50
C51: 43 | D51: -0.3 | O51: 4 | T51: 43 | U51: 43 | V51: 0 | W51: P50
C52: 44 | D52: -0.3 | F52: 0.1 | O52: 4 | T52: 44 | U52: 44 | V52: 0 | W52: P50
C53: 45 | D53: -0.3 | F53: 0.2 | O53: 4 | T53: 45 | U53: 45 | V53: 0 | W53: P50
C54: 46 | D54: -0.4 | F54: -0.1 | O54: 4 | S54: 1 | T54: 46 | U54: 46 | V54: 0 | W54: P50
C55: 47 | D55: -0.4 | O55: 4 | T55: 47 | U55: 47 | V55: 0 | W55: P50
C56: 48 | D56: -0.4 | F56: 0.1 | O56: 4 | T56: 48 | U56: 48 | V56: 0 | W56: P50
C57: 49 | D57: -0.4 | F57: 0.2 | O57: 4 | T57: 49 | U57: 49 | V57: 0 | W57: P50
C58: 50 | G58: 5 | T58: 50 | U58: 50 | V58: Offshore wind Gujarat | W58: P50 | X58: 13.55105712
C59: 51 | T59: 51 | U59: 51 | V59: Offshore wind Gujarat | W59: P50 | X59: 13.71106257
C60: 52 | E60: -0.1 | T60: 52 | U60: 52 | V60: Offshore wind Gujarat | W60: P50 | X60: 13.30764559
C61: 53 | E61: -0.2 | T61: 53 | U61: 53 | V61: Offshore wind Gujarat | W61: P50 | X61: 12.90422861
C62: 54 | E62: -0.3 | T62: 54 | U62: 54 | V62: Offshore wind Gujarat | W62: P50 | X62: 12.50081163
C63: 55 | O63: 1 | P63: 1 | Q63: 2020 | T63: 55 | U63: 55 | V63: Offshore wind Gujarat | W63: P50 | X63: 13.71106257
C64: 56 | D64: -0.15 | E64: -0.3 | M64: 0.2 | O64: 1 | P64: 1 | Q64: 2025 | T64: 56 | U64: 56 | V64: Offshore wind Gujarat | W64: P50 | X64: 11.42872502
C65: 57 | D65: -0.4 | E65: -0.4 | I65: -0.25 | J65: 0.33 | M65: 0.5 | O65: 1 | P65: 1 | Q65: 2030 | T65: 57 | U65: 57 | V65: Offshore wind Gujarat | W65: P50 | X65: 8.09777163
C66: 58 | O66: 2 | P66: 1 | Q66: 2020 | T66: 58 | U66: 58 | V66: Offshore wind Tamil Nadu Site B | W66: P50 | X66: 9.825456595
C67: 59 | D67: -0.15 | E67: -0.3 | M67: 0.2 | O67: 2 | P67: 1 | Q67: 2025 | T67: 59 | U67: 59 | V67: Offshore wind Tamil Nadu Site B | W67: P50 | X67: 8.174365499
C68: 60 | D68: -0.4 | E68: -0.4 | I68: -0.25 | J68: 0.33 | M68: 0.5 | O68: 2 | P68: 1 | Q68: 2030 | T68: 60 | U68: 60 | V68: Offshore wind Tamil Nadu Site B | W68: P50 | X68: 5.804293496
C69: 61 | O69: 1 | P69: 3 | Q69: 2020 | T69: 61 | U69: 61 | V69: Offshore wind Gujarat | W69: P90 | X69: 13.71106257
C70: 62 | D70: -0.15 | E70: -0.3 | M70: 0.2 | O70: 1 | P70: 3 | Q70: 2025 | T70: 62 | U70: 62 | V70: Offshore wind Gujarat | W70: P90 | X70: 11.42872502
C71: 63 | D71: -0.4 | E71: -0.4 | I71: -0.25 | J71: 0.33 | M71: 0.5 | O71: 1 | P71: 3 | Q71: 2030 | T71: 63 | U71: 63 | V71: Offshore wind Gujarat | W71: P90 | X71: 8.09777163
C72: 64 | O72: 2 | P72: 3 | Q72: 2020 | T72: 64 | U72: 64 | V72: Offshore wind Tamil Nadu Site B | W72: P90 | X72: 9.825456595
C73: 65 | D73: -0.15 | E73: -0.3 | M73: 0.2 | O73: 2 | P73: 3 | Q73: 2025 | T73: 65 | U73: 65 | V73: Offshore wind Tamil Nadu Site B | W73: P90 | X73: 8.174365499
C74: 66 | D74: -0.4 | E74: -0.4 | I74: -0.25 | J74: 0.33 | M74: 0.5 | O74: 2 | P74: 3 | Q74: 2030 | T74: 66 | U74: 66 | V74: Offshore wind Tamil Nadu Site B | W74: P90 | X74: 5.804293496
C75: 67 | O75: 3 | P75: 1 | Q75: 2020 | T75: =T74+1 -> 67 | U75: 67 | V75: IREDA input | W75: P50 | X75: 10.30985519
C76: =C75+1 -> 68 | D76: -0.15 | E76: -0.3 | M76: 0.2 | O76: 3 | P76: 1 | Q76: 2025 | T76: 68 | U76: 68 | V76: IREDA input | W76: P50 | X76: 8.823094503
C77: 69 | D77: -0.4 | E77: -0.4 | I77: -0.25 | J77: 0.33 | M77: 0.5 | O77: 3 | P77: 1 | Q77: 2030 | T77: 69 | U77: 69 | V77: IREDA input | W77: P50 | X77: 6.068862666
C78: 70 | O78: 3 | P78: 3 | Q78: 2020 | T78: 70 | U78: 70 | V78: IREDA input | W78: P90 | X78: 10.30985519
C79: 71 | D79: -0.15 | E79: -0.3 | M79: 0.2 | O79: 3 | P79: 3 | Q79: 2025 | T79: 71 | U79: 71 | V79: IREDA input | W79: P90 | X79: 8.823094503
C80: 72 | D80: -0.4 | E80: -0.4 | I80: -0.25 | J80: 0.33 | M80: 0.5 | O80: 3 | P80: 3 | Q80: 2030 | T80: 72 | U80: 72 | V80: IREDA input | W80: P90 | X80: 6.068862666
C81: 73 | T81: 73 | U81: 73 | V81: Offshore wind Gujarat | W81: P50 | X81: 13.71106257
A82: MNRE sensitivites | B82: Tamil Nadu | C82: 74 | D82: -0.2790585637 | E82: -0.5650983533 | H82: 0.07 | J82: 0.07 | L82: 0.07 | M82: 0.1 | N82: 0.06 | O82: 2 | Q82: Construction year must be set to 2020 | T82: 74 | U82: 74 | V82: Offshore wind Tamil Nadu Site B | W82: P50 | X82: 6.807047303
C83: 75 | D83: -0.1518336044 | E83: -0.5650983533 | H83: 0.07 | J83: 0.07 | L83: 0.07 | M83: 0.1 | N83: 0.06 | O83: 2 | Q83: Construction year must be set to 2020 | T83: 75 | U83: 75 | V83: Offshore wind Tamil Nadu Site B | W83: P50 | X83: 7.733605856
C84: 76 | D84: -0.02460864503 | E84: -0.6375819611 | H84: 0.06 | J84: 0.06 | L84: 0.06 | M84: 0.1 | N84: 0.05 | O84: 2 | Q84: Construction year must be set to 2020 | T84: 76 | U84: 76 | V84: Offshore wind Tamil Nadu Site B | W84: P50 | X84: 8.107680872
A85: MNRE sensitivites | B85: Gujarat | C85: 77 | D85: -0.305990284 | E85: -0.5650983533 | H85: 0.07 | J85: 0.07 | L85: 0.07 | M85: 0.1 | N85: 0.06 | O85: 1 | Q85: Construction year must be set to 2020 | T85: 77 | U85: 77 | V85: Offshore wind Gujarat | W85: P50 | X85: 9.24854228
C86: 78 | D86: -0.2243420822 | E86: -0.5650983533 | H86: 0.07 | J86: 0.07 | L86: 0.07 | M86: 0.1 | N86: 0.06 | O86: 1 | Q86: Construction year must be set to 2020 | T86: 78 | U86: 78 | V86: Offshore wind Gujarat | W86: P50 | X86: 10.08780151
C87: 79 | D87: -0.0610456784 | E87: -0.6375819611 | H87: 0.06 | J87: 0.06 | L87: 0.06 | M87: 0.1 | N87: 0.05 | O87: 1 | Q87: Construction year must be set to 2020 | T87: 79 | U87: 79 | V87: Offshore wind Gujarat | W87: P50 | X87: 11.01567626
C88: 80 | T88: 80
C89: 81 | T89: 81
C90: 82 | T90: 82
C91: 83 | T91: 83
C92: 84 | T92: 84
C93: 85 | T93: 85
C94: 86 | T94: 86
C95: 87 | T95: 87
C96: 88 | T96: 88
C97: 89 | T97: 89
C98: 90 | T98: 90
C99: 91 | T99: 91
C100: 92 | T100: 92
C101: 93 | T101: 93
C102: 94 | T102: 94
C103: 95 | T103: 95
C104: 96 | T104: 96
T105: 97
T106: 98
T107: 99
T108: 100
T109: 101
T110: 102
T111: 103
T112: 104
T113: 105
T114: 106
T115: 107
T116: 108
T117: 109

Sheet Result tables
B1: =MID(CELL("filename",A1),1+FIND("]",CELL("filename",A1)),99) -> Result tables
B5: LCOE sensitivitu chart
B7: Technology | C7: ='Technical data'!E9 -> Offshore wind Gujarat | D7: 1 | H7: Technology | I7: ='Technical data'!G9 -> 0 | J7: 3
B8: CAPEX base | H8: CAPEX base
D9: LCOE | E9: AEP | F9: Scenario | J9: LCOE | K9: AEP | L9: Scenario
B10: 1 | C10: =Sensitivity!F10 -> -0.1 | D10: =INDEX(Sensitivity!$X$9:$X$117,'Result tables'!F10) -> 15.23451397 | E10: =INDEX('Technical data'!$L$28:$O$28,,$D$7)*(1+C10) -> 1403.452733 | F10: 2 | H10: 1 | I10: =C10 -> -0.1 | J10: =INDEX(Sensitivity!$X$9:$X$117,'Result tables'!L10) -> 10.91717399 | K10: =INDEX('Technical data'!$L$28:$O$28,,$J$7)*(1+I10) -> 0 | L10: 26
B11: 2 | C11: =Sensitivity!F11 -> 0 | D11: =INDEX(Sensitivity!$X$9:$X$117,'Result tables'!F11) -> 13.71106257 | E11: =INDEX('Technical data'!$L$28:$O$28,,$D$7)*(1+C11) -> 1559.391925 | F11: 3 | H11: 2 | I11: =C11 -> 0 | J11: =INDEX(Sensitivity!$X$9:$X$117,'Result tables'!L11) -> 10.30985519 | K11: =INDEX('Technical data'!$L$28:$O$28,,$J$7)*(1+I11) -> 0 | L11: 27
B12: 3 | C12: =Sensitivity!F12 -> 0.1 | D12: =INDEX(Sensitivity!$X$9:$X$117,'Result tables'!F12) -> 12.46460234 | E12: =INDEX('Technical data'!$L$28:$O$28,,$D$7)*(1+C12) -> 1715.331118 | F12: 4 | H12: 3 | I12: 0.1 | J12: =INDEX(Sensitivity!$X$9:$X$117,'Result tables'!L12) -> 12.46460234 | K12: =INDEX('Technical data'!$L$28:$O$28,,$J$7)*(1+I12) -> 0 | L12: 28
B13: 4 | C13: =Sensitivity!F13 -> 0.2 | D13: =INDEX(Sensitivity!$X$9:$X$117,'Result tables'!F13) -> 11.42588548 | E13: =INDEX('Technical data'!$L$28:$O$28,,$D$7)*(1+C13) -> 1871.27031 | F13: 5 | H13: 4 | I13: 0.2 | J13: =INDEX(Sensitivity!$X$9:$X$117,'Result tables'!L13) -> 8.591545995 | K13: =INDEX('Technical data'!$L$28:$O$28,,$J$7)*(1+I13) -> 0 | L13: 29
B15: CAPEX - 40 % | H15: CAPEX - 40 %
D16: LCOE | E16: AEP | F16: Scenario | J16: LCOE | K16: AEP | L16: Scenario
B17: 1 | C17: =C10 -> -0.1 | D17: =INDEX(Sensitivity!$X$9:$X$117,'Result tables'!F17) -> 10.93367274 | E17: =INDEX('Technical data'!$L$28:$O$28,,$D$7)*(1+C17) -> 1403.452733 | F17: 10 | H17: 1 | I17: =I10 -> -0.1 | J17: =INDEX(Sensitivity!$X$9:$X$117,'Result tables'!L17) -> 7.708123995 | K17: =INDEX('Technical data'!$L$28:$O$28,,$J$7)*(1+I17) -> 0 | L17: 34
B18: 2 | C18: =C11 -> 0 | D18: =INDEX(Sensitivity!$X$9:$X$117,'Result tables'!F18) -> 9.840305465 | E18: =INDEX('Technical data'!$L$28:$O$28,,$D$7)*(1+C18) -> 1559.391925 | F18: 11 | H18: 2 | I18: =I11 -> 0 | J18: =INDEX(Sensitivity!$X$9:$X$117,'Result tables'!L18) -> 6.937311596 | K18: =INDEX('Technical data'!$L$28:$O$28,,$J$7)*(1+I18) -> 0 | L18: 35
B19: 3 | C19: 0.1 | D19: =INDEX(Sensitivity!$X$9:$X$117,'Result tables'!F19) -> 8.945732241 | E19: =INDEX('Technical data'!$L$28:$O$28,,$D$7)*(1+C19) -> 1715.331118 | F19: 12 | H19: 3 | I19: 0.1 | J19: =INDEX(Sensitivity!$X$9:$X$117,'Result tables'!L19) -> 6.306646905 | K19: =INDEX('Technical data'!$L$28:$O$28,,$J$7)*(1+I19) -> 0 | L19: 36
B20: 4 | C20: 0.2 | D20: =INDEX(Sensitivity!$X$9:$X$117,'Result tables'!F20) -> 8.200254554 | E20: =INDEX('Technical data'!$L$28:$O$28,,$D$7)*(1+C20) -> 1871.27031 | F20: 13 | H20: 4 | I20: 0.2 | J20: =INDEX(Sensitivity!$X$9:$X$117,'Result tables'!L20) -> 5.781092996 | K20: =INDEX('Technical data'!$L$28:$O$28,,$J$7)*(1+I20) -> 0 | L20: 37
B22: CAPEX - 30 % | H22: CAPEX - 30 %
D23: LCOE | E23: AEP | F23: Scenario | J23: LCOE | K23: AEP | L23: Scenario
B24: 1 | C24: =C17 -> -0.1 | D24: =INDEX(Sensitivity!$X$9:$X$117,'Result tables'!F24) -> 12.00888305 | E24: =INDEX('Technical data'!$L$28:$O$28,,$D$7)*(1+C24) -> 1403.452733 | F24: 6 | H24: 1 | I24: =I17 -> -0.1 | J24: =INDEX(Sensitivity!$X$9:$X$117,'Result tables'!L24) -> 8.644941661 | K24: =INDEX('Technical data'!$L$28:$O$28,,$J$7)*(1+I24) -> 0 | L24: 30
B25: 2 | C25: =C18 -> 0 | D25: =INDEX(Sensitivity!$X$9:$X$117,'Result tables'!F25) -> 10.80799474 | E25: =INDEX('Technical data'!$L$28:$O$28,,$D$7)*(1+C25) -> 1559.391925 | F25: 7 | H25: 2 | I25: =I18 -> 0 | J25: =INDEX(Sensitivity!$X$9:$X$117,'Result tables'!L25) -> 7.780447495 | K25: =INDEX('Technical data'!$L$28:$O$28,,$J$7)*(1+I25) -> 0 | L25: 31
B26: 3 | C26: 0.1 | D26: =INDEX(Sensitivity!$X$9:$X$117,'Result tables'!F26) -> 9.825449766 | E26: =INDEX('Technical data'!$L$28:$O$28,,$D$7)*(1+C26) -> 1715.331118 | F26: 8 | H26: 3 | I26: 0.1 | J26: =INDEX(Sensitivity!$X$9:$X$117,'Result tables'!L26) -> 7.073134087 | K26: =INDEX('Technical data'!$L$28:$O$28,,$J$7)*(1+I26) -> 0 | L26: 32
B27: 4 | C27: 0.2 | D27: =INDEX(Sensitivity!$X$9:$X$117,'Result tables'!F27) -> 9.006662285 | E27: =INDEX('Technical data'!$L$28:$O$28,,$D$7)*(1+C27) -> 1871.27031 | F27: 9 | H27: 4 | I27: 0.2 | J27: =INDEX(Sensitivity!$X$9:$X$117,'Result tables'!L27) -> 6.483706246 | K27: =INDEX('Technical data'!$L$28:$O$28,,$J$7)*(1+I27) -> 0 | L27: 33
B29: Technology | C29: ='Technical data'!F9 -> Offshore wind Tamil Nadu Site B | D29: 2 | H29: Technology | I29: ='Technical data'!H9 -> 0 | J29: 4
B30: CAPEX base | H30: CAPEX base
D31: LCOE | E31: AEP | F31: Scenario | J31: LCOE | K31: AEP | L31: Scenario
B32: 1 | C32: =C24 -> -0.1 | D32: =INDEX(Sensitivity!$X$9:$X$117,'Result tables'!F32) -> 10.91717399 | E32: =INDEX('Technical data'!$L$28:$O$28,,$D$29)*(1+C32) -> 2110.09617 | F32: 14 | H32: 1 | I32: =I24 -> -0.1 | J32: =INDEX(Sensitivity!$X$9:$X$117,'Result tables'!L32) ->  | K32: =INDEX('Technical data'!$L$28:$O$28,,$J$29)*(1+I32) -> 0 | L32: 38
B33: 2 | C33: =C25 -> 0 | D33: =INDEX(Sensitivity!$X$9:$X$117,'Result tables'!F33) -> 9.825456595 | E33: =INDEX('Technical data'!$L$28:$O$28,,$D$29)*(1+C33) -> 2344.5513 | F33: 15 | H33: 2 | I33: =I25 -> 0 | J33: =INDEX(Sensitivity!$X$9:$X$117,'Result tables'!L33) ->  | K33: =INDEX('Technical data'!$L$28:$O$28,,$J$29)*(1+I33) -> 0 | L33: 39
B34: 3 | C34: 0.1 | D34: =INDEX(Sensitivity!$X$9:$X$117,'Result tables'!F34) -> 8.932233268 | E34: =INDEX('Technical data'!$L$28:$O$28,,$D$29)*(1+C34) -> 2579.00643 | F34: 16 | H34: 3 | I34: 0.1 | J34: =INDEX(Sensitivity!$X$9:$X$117,'Result tables'!L34) ->  | K34: =INDEX('Technical data'!$L$28:$O$28,,$J$29)*(1+I34) -> 0 | L34: 40
B35: 4 | C35: 0.2 | D35: =INDEX(Sensitivity!$X$9:$X$117,'Result tables'!F35) -> 11.42588548 | E35: =INDEX('Technical data'!$L$28:$O$28,,$D$29)*(1+C35) -> 2813.46156 | F35: 17 | H35: 4 | I35: 0.2 | J35: =INDEX(Sensitivity!$X$9:$X$117,'Result tables'!L35) ->  | K35: =INDEX('Technical data'!$L$28:$O$28,,$J$29)*(1+I35) -> 0 | L35: 41
B37: CAPEX + 10 % | H37: CAPEX + 10 %
D38: LCOE | E38: AEP | F38: Scenario | J38: LCOE | K38: AEP | L38: Scenario
B39: 1 | C39: =C32 -> -0.1 | D39: =INDEX(Sensitivity!$X$9:$X$117,'Result tables'!F39) -> 7.869949462 | E39: =INDEX('Technical data'!$L$28:$O$28,,$D$29)*(1+C39) -> 2110.09617 | F39: 22 | H39: 1 | I39: =I32 -> -0.1 | J39: =INDEX(Sensitivity!$X$9:$X$117,'Result tables'!L39) ->  | K39: =INDEX('Technical data'!$L$28:$O$28,,$J$29)*(1+I39) -> 0 | L39: 46
B40: 2 | C40: =C33 -> 0 | D40: =INDEX(Sensitivity!$X$9:$X$117,'Result tables'!F40) -> 7.082954516 | E40: =INDEX('Technical data'!$L$28:$O$28,,$D$29)*(1+C40) -> 2344.5513 | F40: 23 | H40: 2 | I40: =I33 -> 0 | J40: =INDEX(Sensitivity!$X$9:$X$117,'Result tables'!L40) ->  | K40: =INDEX('Technical data'!$L$28:$O$28,,$J$29)*(1+I40) -> 0 | L40: 47
B41: 3 | C41: 0.1 | D41: =INDEX(Sensitivity!$X$9:$X$117,'Result tables'!F41) -> 6.43904956 | E41: =INDEX('Technical data'!$L$28:$O$28,,$D$29)*(1+C41) -> 2579.00643 | F41: 24 | H41: 3 | I41: 0.1 | J41: =INDEX(Sensitivity!$X$9:$X$117,'Result tables'!L41) ->  | K41: =INDEX('Technical data'!$L$28:$O$28,,$J$29)*(1+I41) -> 0 | L41: 48
B42: 4 | C42: 0.2 | D42: =INDEX(Sensitivity!$X$9:$X$117,'Result tables'!F42) -> 5.902462097 | E42: =INDEX('Technical data'!$L$28:$O$28,,$D$29)*(1+C42) -> 2813.46156 | F42: 25 | H42: 4 | I42: 0.2 | J42: =INDEX(Sensitivity!$X$9:$X$117,'Result tables'!L42) ->  | K42: =INDEX('Technical data'!$L$28:$O$28,,$J$29)*(1+I42) -> 0 | L42: 49
B44: CAPEX - 10 % | H44: CAPEX - 10 %
D45: LCOE | E45: AEP | F45: Scenario | J45: LCOE | K45: AEP | L45: Scenario
B46: 1 | C46: =C39 -> -0.1 | D46: =INDEX(Sensitivity!$X$9:$X$117,'Result tables'!F46) -> 8.631755595 | E46: =INDEX('Technical data'!$L$28:$O$28,,$D$29)*(1+C46) -> 2110.09617 | F46: 18 | H46: 1 | I46: =I39 -> -0.1 | J46: =INDEX(Sensitivity!$X$9:$X$117,'Result tables'!L46) ->  | K46: =INDEX('Technical data'!$L$28:$O$28,,$J$29)*(1+I46) -> 0 | L46: 42
B47: 2 | C47: =C40 -> 0 | D47: =INDEX(Sensitivity!$X$9:$X$117,'Result tables'!F47) -> 7.768580036 | E47: =INDEX('Technical data'!$L$28:$O$28,,$D$29)*(1+C47) -> 2344.5513 | F47: 19 | H47: 2 | I47: =I40 -> 0 | J47: =INDEX(Sensitivity!$X$9:$X$117,'Result tables'!L47) ->  | K47: =INDEX('Technical data'!$L$28:$O$28,,$J$29)*(1+I47) -> 0 | L47: 43
B48: 3 | C48: 0.1 | D48: =INDEX(Sensitivity!$X$9:$X$117,'Result tables'!F48) -> 7.062345487 | E48: =INDEX('Technical data'!$L$28:$O$28,,$D$29)*(1+C48) -> 2579.00643 | F48: 20 | H48: 3 | I48: 0.1 | J48: =INDEX(Sensitivity!$X$9:$X$117,'Result tables'!L48) ->  | K48: =INDEX('Technical data'!$L$28:$O$28,,$J$29)*(1+I48) -> 0 | L48: 44
B49: 4 | C49: 0.2 | D49: =INDEX(Sensitivity!$X$9:$X$117,'Result tables'!F49) -> 6.473816696 | E49: =INDEX('Technical data'!$L$28:$O$28,,$D$29)*(1+C49) -> 2813.46156 | F49: 21 | H49: 4 | I49: 0.2 | J49: =INDEX(Sensitivity!$X$9:$X$117,'Result tables'!L49) ->  | K49: =INDEX('Technical data'!$L$28:$O$28,,$J$29)*(1+I49) -> 0 | L49: 45
B51: LCOE sensitivity chart 2
B53: Main result | C53: =Results!C11 -> 7.426543606
B54: Lifetime extended 5 years | C54: =Sensitivity!X58 -> 13.55105712
B55: Construction time halved | C55: =Sensitivity!X59 -> 13.71106257
B56: OPEX reduced 10% | C56: =Sensitivity!X60 -> 13.30764559
B57: OPEX reduced 20% | C57: =Sensitivity!X61 -> 12.90422861
B58: OPEX reduced 30% | C58: =Sensitivity!X62 -> 12.50081163
C60: Gujarat | E60: Tamil Nadu Site C | M60: Site B | O60: Site C East
C61: P50 | D61: P90 | E61: P50 | F61: P90 | G61: Blank | H61: Red | I61: Blank | J61: Grey | M61: P50 | N61: P90 | O61: P50 | P61: P90 | Q61: Blank | R61: Red | S61: Blank | T61: Grey
B62: 2020-2022 | C62: =Sensitivity!X63 -> 13.71106257 | D62: =Sensitivity!X69 -> 13.71106257 | G62: =E62 -> 0 | H62: =F62-E62 -> 0 | I62: =C62-F62 -> 13.71106257 | J62: =D62-C62 -> 0 | L62: 2020-2022 | M62: =Sensitivity!X75 -> 10.30985519 | N62: =Sensitivity!X78 -> 10.30985519 | O62: =Sensitivity!X66 -> 9.825456595 | P62: =Sensitivity!X72 -> 9.825456595 | Q62: =MIN(M62:P62) -> 9.825456595 | R62: =N62-M62 -> 0 | S62: =O62-N62 -> -0.4843985994 | T62: =P62-O62 -> 0
B63: 2025 | C63: =Sensitivity!X64 -> 11.42872502 | D63: =Sensitivity!X70 -> 11.42872502 | G63: =E63 -> 0 | H63: =F63-E63 -> 0 | I63: =C63-F63 -> 11.42872502 | J63: =D63-C63 -> 0 | L63: 2025 | M63: =Sensitivity!X76 -> 8.823094503 | N63: =Sensitivity!X79 -> 8.823094503 | O63: =Sensitivity!X67 -> 8.174365499 | P63: =Sensitivity!X73 -> 8.174365499 | Q63: =MIN(M63:P63) -> 8.174365499 | R63: =N63-M63 -> 0 | S63: =O63-N63 -> -0.6487290035 | T63: =P63-O63 -> 0
B64: 2030 | C64: =Sensitivity!X65 -> 8.09777163 | D64: =Sensitivity!X71 -> 8.09777163 | G64: =E64 -> 0 | H64: =F64-E64 -> 0 | I64: =C64-F64 -> 8.09777163 | J64: =D64-C64 -> 0 | L64: 2030 | M64: =Sensitivity!X77 -> 6.068862666 | N64: =Sensitivity!X80 -> 6.068862666 | O64: =Sensitivity!X68 -> 5.804293496 | P64: =Sensitivity!X74 -> 5.804293496 | Q64: 5.804293496 | R64: 0 | S64: -0.2645691703 | T64: 0
C85: Opening | D85: High | E85: Low | F85: Close | I85: 2020 P50 | K85: 2020 P90 | M85: 2025 P50 | O85: 2025 P90 | Q85: 2030 P50 | S85: 2030 P90 | U85: 2020 P50 | V85: 2020 P90 | W85: 2025 P50 | X85: 2025 P90 | Y85: 2030 P50 | Z85: 2030 P90
A86: Gujarat | B86: 2020-01-12 | C86: =C62 -> 13.71106257 | D86: =I87 -> 20.27804816 | E86: =I96 -> 12.29618251 | F86: =D62 -> 13.71106257 | I86: Gujarat | J86: Tamil Nadu Site C | K86: Gujarat | L86: Tamil Nadu Site C | M86: Gujarat | N86: Tamil Nadu Site C | O86: Gujarat | P86: Tamil Nadu Site C | Q86: Gujarat | R86: Tamil Nadu Site C | S86: Gujarat | T86: Tamil Nadu Site C | U86: Tamil Nadu Site B | V86: Tamil Nadu Site B | W86: Tamil Nadu Site B | X86: Tamil Nadu Site B | Y86: Tamil Nadu Site B | Z86: Tamil Nadu Site B
B87: 2025-01-13 | C87: =C63 -> 11.42872502 | D87: =M87 -> 17.74149044 | E87: =M96 -> 10.62310073 | F87: =D63 -> 11.42872502 | I87: 20.27804816 | J87: 18.74295291 | K87: 28.31061997 | L87: 26.11933887 | M87: 17.74149044 | N87: 16.3852532 | O87: 24.79975183 | P87: 22.86329627 | Q87: 11.99399254 | R87: 11.09061065 | S87: 16.73454465 | T87: 15.44516614 | U87: 14.59967483 | V87: 20.20499124 | W87: 12.74731576 | X87: 17.66899544 | Y87: 8.644471113 | Z87: 11.95384115
B88: 2030-01-01 | C88: =C64 -> 8.09777163 | D88: =Q87 -> 11.99399254 | E88: =Q96 -> 6.88539616 | F88: =D64 -> 8.09777163 | I88: 18.44085989 | J88: 16.98491205 | K88: 25.85551936 | L88: 23.77721771 | M88: 16.22097969 | N88: 14.93025388 | O88: 22.76728533 | P88: 20.92436796 | Q88: 10.8768875 | R88: 10.02162877 | S88: 15.24191788 | T88: 14.02122458 | U88: 13.15847541 | V88: 18.31514734 | W88: 11.55457061 | X88: 16.1045175 | Y88: 7.768135004 | Z88: 10.80485896
A89: Tamil Nadu Site C | B89: =B86 -> 2020-01-12 | C89: =O62 -> 9.825456595 | D89: =J87 -> 18.74295291 | E89: =J96 -> 11.27135972 | F89: =P62 -> 9.825456595 | I89: 16.99618423 | J89: 15.65429682 | K89: 23.82997176 | L89: 21.91448637 | M89: 14.88163274 | N89: 13.69748063 | O89: 20.88741774 | P89: 19.19666785 | Q89: 10.04793302 | R89: 9.25785568 | S89: 14.08029365 | T89: 12.9526324 | U89: 12.12762711 | V89: 16.88032013 | W89: 10.60052349 | X89: 14.7747867 | Y89: 7.176106239 | Z89: 9.98139396
B90: 2025-01-13 | C90: =O63 -> 8.174365499 | D90: =N87 -> 16.3852532 | E90: =N96 -> 9.720090445 | F90: =P63 -> 8.174365499 | I90: 16.30711362 | J90: 15.0196299 | K90: 21.53746929 | L90: 19.80625835 | M90: 14.27845577 | N90: 13.14229928 | O90: 18.87347107 | P90: 17.34574182 | Q90: 9.640513786 | R90: 8.882472158 | S90: 12.72724349 | T90: 11.7079452 | U90: 11.63594078 | V90: 15.25639141 | W90: 10.1708669 | X90: 13.3502146 | Y90: 6.885132592 | Z90: 9.022228831
B91: 2030-01-01 | C91: =O64 -> 5.804293496 | D91: =R87 -> 11.09061065 | E91: =R96 -> 6.281530545 | F91: =P64 -> 5.804293496 | I91: 15.49175794 | J91: 14.2686484 | K91: 20.46059582 | L91: 18.81594543 | M91: 13.56453298 | N91: 12.48518432 | O91: 17.92979752 | P91: 16.47845473 | Q91: 9.158488097 | R91: 8.43834855 | S91: 12.09088132 | T91: 11.12254794 | U91: 11.05414374 | V91: 14.49357184 | W91: 9.662323553 | X91: 12.68270387 | Y91: 6.540875962 | Z91: 8.571117389
A92: Tamil Nadu Site B | B92: 2020-01-12 | C92: =M62 -> 10.30985519 | D92: =U87 -> 14.59967483 | E92: =U96 -> 8.536514638 | F92: =N62 -> 10.30985519 | I92: 15.16700128 | J92: 13.97535791 | K92: 20.03032283 | L92: 18.42798332 | M92: 13.27353667 | N92: 12.22245498 | O92: 17.54383913 | P92: 16.13050544 | Q92: 8.968789853 | R92: 8.26700559 | S92: 11.83969345 | T92: 10.89604145 | U92: 10.82777704 | V92: 14.19559859 | W92: 9.459836581 | X92: 12.41575929 | Y92: 6.408528351 | Z92: 8.397045869
B93: 2025-01-13 | C93: =M63 -> 8.823094503 | D93: =W87 -> 12.74731576 | E93: =W96 -> 7.323088176 | F93: =N63 -> 8.823094503 | I93: 14.44476312 | J93: 13.30986468 | K93: 19.07649793 | L93: 17.55046031 | M93: 12.64146349 | N93: 11.64043331 | O93: 16.70841822 | P93: 15.36238614 | Q93: 8.541704622 | R93: 7.873338657 | S93: 11.27589852 | T93: 10.37718233 | U93: 10.31216861 | V93: 13.51961771 | W93: 9.009368172 | X93: 11.82453266 | Y93: 6.103360335 | Z93: 7.997186542
B94: 2030-01-01 | C94: =M64 -> 6.068862666 | D94: =Y87 -> 8.644471113 | E94: =Y96 -> 4.665573382 | F94: =N64 -> 6.068862666 | I94: 13.25580396 | J94: 12.23098117 | K94: 17.47776773 | L94: 16.09974299 | M94: 11.58272219 | N94: 10.6797119 | O94: 15.28478505 | P94: 14.0705551 | Q94: 7.845017612 | R94: 7.241151997 | S94: 10.33910053 | T94: 9.527114525 | U94: 9.496136091 | V94: 12.42234215 | W94: 8.282709628 | X94: 10.84743353 | Y94: 5.625194834 | Z94: 7.354222804
I95: 12.29618251 | J95: 11.27135972 | K95: 16.51814628 | L95: 15.14012154 | M95: 10.62310073 | N95: 9.720090445 | O95: 14.32516359 | P95: 13.11093365 | Q95: 6.88539616 | R95: 6.281530545 | S95: 9.379479074 | T95: 8.567493073 | U95: 8.536514638 | V95: 11.4627207 | W95: 7.323088176 | X95: 9.887812081 | Y95: 4.665573382 | Z95: 6.394601352
I96: 12.29618251 | J96: 11.27135972 | K96: 16.51814628 | L96: 15.14012154 | M96: 10.62310073 | N96: 9.720090445 | O96: 14.32516359 | P96: 13.11093365 | Q96: 6.88539616 | R96: 6.281530545 | S96: 9.379479074 | T96: 8.567493073 | U96: 8.536514638 | V96: 11.4627207 | W96: 7.323088176 | X96: 9.887812081 | Y96: 4.665573382 | Z96: 6.394601352
I97: Copied from results, requires many successive runs of the decosting chart macro
H100: Scen | I100: 18
H101: p | I101: 1 | J101: 1 | K101: 3 | L101: 3 | M101: 1 | N101: 1 | O101: 3 | P101: 3 | Q101: 1 | R101: 1 | S101: 3 | T101: 3 | U101: 1 | V101: 3 | W101: 1 | X101: 3 | Y101: 1 | Z101: 3
H102: Site | I102: 1 | J102: 2 | K102: 1 | L102: 2 | M102: 1 | N102: 2 | O102: 1 | P102: 2 | Q102: 1 | R102: 2 | S102: 1 | T102: 2 | U102: 3 | V102: 3 | W102: 3 | X102: 3 | Y102: 3 | Z102: 3
I103: 2020 | J103: 2020 | K103: 2020 | L103: 2020 | M103: 2025 | N103: 2025 | O103: 2025 | P103: 2025 | Q103: 2030 | R103: 2030 | S103: 2030 | T103: 2030 | U103: 2020 | V103: 2020 | W103: 2025 | X103: 2025 | Y103: 2030 | Z103: 2030
I104: =INDEX(Lists!$D$4:$D$7,'Result tables'!I101) -> P50 | J104: =INDEX(Lists!$D$4:$D$7,'Result tables'!J101) -> P50 | K104: =INDEX(Lists!$D$4:$D$7,'Result tables'!K101) -> P90 | L104: =INDEX(Lists!$D$4:$D$7,'Result tables'!L101) -> P90 | M104: =INDEX(Lists!$D$4:$D$7,'Result tables'!M101) -> P50 | N104: =INDEX(Lists!$D$4:$D$7,'Result tables'!N101) -> P50 | O104: =INDEX(Lists!$D$4:$D$7,'Result tables'!O101) -> P90 | P104: =INDEX(Lists!$D$4:$D$7,'Result tables'!P101) -> P90 | Q104: =INDEX(Lists!$D$4:$D$7,'Result tables'!Q101) -> P50 | R104: =INDEX(Lists!$D$4:$D$7,'Result tables'!R101) -> P50 | S104: =INDEX(Lists!$D$4:$D$7,'Result tables'!S101) -> P90 | T104: =INDEX(Lists!$D$4:$D$7,'Result tables'!T101) -> P90 | U104: =INDEX(Lists!$D$4:$D$7,'Result tables'!U101) -> P50 | V104: =INDEX(Lists!$D$4:$D$7,'Result tables'!V101) -> P90 | W104: =INDEX(Lists!$D$4:$D$7,'Result tables'!W101) -> P50 | X104: =INDEX(Lists!$D$4:$D$7,'Result tables'!X101) -> P90 | Y104: =INDEX(Lists!$D$4:$D$7,'Result tables'!Y101) -> P50 | Z104: =INDEX(Lists!$D$4:$D$7,'Result tables'!Z101) -> P90
I105: =INDEX(Lists!$B$4:$B$7,'Result tables'!I102) -> Offshore wind Gujarat | J105: =INDEX(Lists!$B$4:$B$7,'Result tables'!J102) -> Offshore wind Tamil Nadu Site B | K105: =INDEX(Lists!$B$4:$B$7,'Result tables'!K102) -> Offshore wind Gujarat | L105: =INDEX(Lists!$B$4:$B$7,'Result tables'!L102) -> Offshore wind Tamil Nadu Site B | M105: =INDEX(Lists!$B$4:$B$7,'Result tables'!M102) -> Offshore wind Gujarat | N105: =INDEX(Lists!$B$4:$B$7,'Result tables'!N102) -> Offshore wind Tamil Nadu Site B | O105: =INDEX(Lists!$B$4:$B$7,'Result tables'!O102) -> Offshore wind Gujarat | P105: =INDEX(Lists!$B$4:$B$7,'Result tables'!P102) -> Offshore wind Tamil Nadu Site B | Q105: =INDEX(Lists!$B$4:$B$7,'Result tables'!Q102) -> Offshore wind Gujarat | R105: =INDEX(Lists!$B$4:$B$7,'Result tables'!R102) -> Offshore wind Tamil Nadu Site B | S105: =INDEX(Lists!$B$4:$B$7,'Result tables'!S102) -> Offshore wind Gujarat | T105: =INDEX(Lists!$B$4:$B$7,'Result tables'!T102) -> Offshore wind Tamil Nadu Site B | U105: =INDEX(Lists!$B$4:$B$7,'Result tables'!U102) -> 0 | V105: =INDEX(Lists!$B$4:$B$7,'Result tables'!V102) -> 0 | W105: =INDEX(Lists!$B$4:$B$7,'Result tables'!W102) -> 0 | X105: =INDEX(Lists!$B$4:$B$7,'Result tables'!X102) -> 0 | Y105: =INDEX(Lists!$B$4:$B$7,'Result tables'!Y102) -> 0 | Z105: =INDEX(Lists!$B$4:$B$7,'Result tables'!Z102) -> 0
C116: Opening | D116: High | E116: Low | F116: Close
A117: Gujarat | B117: 2020 | C117: =C88 -> 8.09777163 | D117: =D88 -> 11.99399254 | E117: 6.88539616 | F117: 8.09777163
A118: Tamil Nadu Site C | B118: 2020 | C118: =C91 -> 5.804293496 | D118: =D91 -> 11.09061065 | E118: 6.281530545 | F118: 5.804293496
A119: Tamil Nadu Site B | B119: 2020 | C119: =C94 -> 6.068862666 | D119: =D94 -> 8.644471113 | E119: 4.665573382 | F119: 6.068862666

Sheet Data transformation
B1: =MID(CELL("filename",A1),1+FIND("]",CELL("filename",A1)),99) -> Data transformation
B3: ='User Interface'!B6 -> Generation technology
B5: ='User Interface'!B8 -> Technology | D5: ='User Interface'!D8 -> Energy Production
B6: ='User Interface'!B9 -> 2 | D6: ='User Interface'!D9 -> 1
B8: ='User Interface'!B11 -> Dimensioning and timing
B10: ='User Interface'!B13 -> Nominal capacity | C10: ='User Interface'!C13 -> MW | D10: ='User Interface'!D13 -> 500
B11: ='User Interface'!B14 -> 1 st year of construction | C11: ='User Interface'!C14 -> Year | D11: ='User Interface'!D14 -> 2025
B12: ='User Interface'!B15 -> Construction time | C12: ='User Interface'!C15 -> Years | D12: ='User Interface'!D15 -> 4
B13: ='User Interface'!B16 -> Technical life | C13: ='User Interface'!C16 -> Years | D13: ='User Interface'!D16+Sensitivity!$G$8 -> 27
B16: ='User Interface'!B24 -> Generation data check
B18: ='User Interface'!B26 -> Net AEP after wake loss only | C18: ='User Interface'!C26 -> GWh | D18: ='Technical data'!P32*(1+Sensitivity!$F$8) -> 2344.5513
B19: ='User Interface'!B27 -> Capacity factor after wake loss only | C19: ='User Interface'!C27 -> % | D19: ='User Interface'!D27 -> 0.5878234086
B21: ='User Interface'!B19 -> Annual variation in AEP
B23: ='User Interface'!B21 -> Annual variation in AEP | C23: ='User Interface'!C21 -> FALSE | D23: =C23*1 -> 0
B25: ='User Interface'!B32 -> Investment expenditure
C27: ='User Interface'!C34 -> Include | D27: ='User Interface'!E34 -> mUSD
B28: ='User Interface'!B35 -> DEVEX | C28: ='User Interface'!C35 -> TRUE | D28: ='User Interface'!E35 -> 39.49176904
B29: ='User Interface'!B36 -> PM | C29: ='User Interface'!C36 -> TRUE | D29: ='User Interface'!E36 -> 37.12354302
B30: ='User Interface'!B37 -> Foundation | C30: ='User Interface'!C37 -> TRUE | D30: ='User Interface'!E37 -> 87.46434747
B31: ='User Interface'!B38 -> WTG | C31: ='User Interface'!C38 -> TRUE | D31: ='User Interface'!E38 -> 640.7011476
B32: ='User Interface'!B39 -> Array cabling | C32: ='User Interface'!C39 -> TRUE | D32: ='User Interface'!E39 -> 140.813439
B33: ='User Interface'!B40 -> Export system | C33: ='User Interface'!C40 -> TRUE | D33: ='User Interface'!E40 -> 247.7036405
B34: ='User Interface'!B41 -> Installation | C34: ='User Interface'!C41 -> TRUE | D34: ='User Interface'!E41 -> 231.7021133
B36: ='User Interface'!B43 -> Total CAPEX (including VAT and duties) | D36: =(SUM(D28:D34))*(1+Sensitivity!D8) -> 1425
B39: ='User Interface'!B46 -> Operational expenditure
C41: ='User Interface'!C48 -> Include | D41: ='User Interface'!E48 -> USD/unit
B42: ='CAPEX & OPEX'!D22 -> USD/MWh | C42: ='User Interface'!C49 -> FALSE | D42: ='User Interface'!E49 -> 0
B43: ='CAPEX & OPEX'!D23 -> USD/MWh | C43: ='User Interface'!C50 -> FALSE | D43: ='User Interface'!E50 -> 0
B44: ='CAPEX & OPEX'!D24 -> USD/MWh | C44: ='User Interface'!C51 -> FALSE | D44: ='User Interface'!E51 -> 0
B45: ='CAPEX & OPEX'!D25 -> USD/MW | C45: ='User Interface'!C52 -> TRUE | D45: ='User Interface'!E52 -> 63700
B46: ='CAPEX & OPEX'!D26 -> USD/MW | C46: ='User Interface'!C53 -> FALSE | D46: ='User Interface'!E53 -> 0
B47: ='CAPEX & OPEX'!D27 -> USD/MW | C47: ='User Interface'!C54 -> FALSE | D47: ='User Interface'!E54 -> 0
B49: ='User Interface'!B56 -> Total variable OPEX | D49: =SUM(D42:D44)*(1+Sensitivity!E8) -> 0
B50: ='User Interface'!B57 -> Total fixed OPEX | D50: =SUM(D45:D47)*(1+Sensitivity!E8) -> 63700
B53: ='User Interface'!B60 -> PPA contract
B55: ='User Interface'!B63 -> Indexing
B56: ='User Interface'!B65 -> Indexing | C56: ='User Interface'!C65 -> FALSE | D56: ='User Interface'!D65 -> 0.03
B57: ='User Interface'!B66 -> Duration of indexing (years) | D57: ='User Interface'!D66 -> 15
B59: ='User Interface'!B69 -> Payment schedule
B61: ='User Interface'!B71 -> Time from delivery to payment (months) | C61: ='User Interface'!C71 -> FALSE | D61: ='User Interface'!D71*C61 -> 0
B64: ='User Interface'!B74 -> Curtailment
B65: ='User Interface'!B76 -> Level of curtailment (% of Net AEP) | C65: ='User Interface'!$C$76 -> FALSE | D65: ='User Interface'!D76*C65 -> 0
B68: ='User Interface'!B79 -> Over-/underproduction
B69: ='User Interface'!B81 -> Committed AEP (GWh) | D69: ='User Interface'!D81 -> 2344.5513
B70: Comitted AEP (MWh) | D70: =CONVERT(D69,"Gwh","Mwh") -> 2344551.3
B71: ='User Interface'!B82 -> Percentage penalty for underproduction (% of Net AEP) | C71: ='User Interface'!C82 -> FALSE | D71: ='User Interface'!D82*Under_penalty_choice -> 0
B72: ='User Interface'!B83 -> Percentage penalty for overproduction (% of Net AEP) | C72: ='User Interface'!C83 -> FALSE | D72: ='User Interface'!D83*Over_penalty_choice -> 0
B74: ='User Interface'!B86 -> Late commissioning
B76: ='User Interface'!B88 -> Delay in commissioning (months) | C76: ='User Interface'!C88 -> FALSE | D76: ='User Interface'!D88*C76 -> 0
B77: ='User Interface'!B89 -> Probability of delay (%) | D77: ='User Interface'!D89 -> 0.5
B78: Delay in commissioning (months) | D78: =ROUND(Prob_delay*Delay,0) -> 0
B79: ='User Interface'!D91 -> Years & | D79: ='User Interface'!D92 -> 0
B80: ='User Interface'!E91 -> Months | D80: ='User Interface'!E92 -> 0
B82: ='User Interface'!B95 -> Government incentives
B84: ='User Interface'!B97 -> Tax incentives
B86: ='User Interface'!B99 -> VAT | C86: ='User Interface'!C99 -> FALSE | D86: ='User Interface'!D99 -> VAT excluded
B87: ='User Interface'!B100 -> Duties | C87: ='User Interface'!C100 -> FALSE | D87: ='User Interface'!D100 -> Duties excluded
B89: ='User Interface'!B103 -> Viability gap funding
B91: ='User Interface'!B115 -> GBI | C91: ='User Interface'!C115 -> FALSE | D91: ='User Interface'!E115*C91 -> 0
B92: GBI timeframe (years) | C92: ='User Interface'!C119*1 -> 0 | D92: ='User Interface'!D119 -> 50
B93: ='User Interface'!B111 -> Investment subsidy | C93: ='User Interface'!C111 -> FALSE | D93: ='User Interface'!E111*Choice_ITC -> 0
B95: ='User Interface'!B128 -> Financing
B97: ='User Interface'!B130 -> Equity financing
F98: 2020 | G98: 2025 | H98: 2030 | I98: =Results!$I$6 -> 2025
B99: ='User Interface'!B132 -> Cost of equity | D99: ='User Interface'!D132*(1+Sensitivity!M8)*(1+I99) -> 0.12 | G99: 0.2 | H99: 0.5 | I99: =INDEX(F99:H99,MATCH(I98,F98:H98,0)) -> 0.2
B100: ='User Interface'!B133 -> Equity share | D100: ='User Interface'!D133 -> 0.25
B102: ='User Interface'!B136 -> Loan financing
B104: ='User Interface'!B138 -> Interest during construction | D104: =IF(Sensitivity!H8>0,Sensitivity!H8,'User Interface'!D138) -> 0.05
B106: ='User Interface'!B140 -> Senior
B107: ='User Interface'!B141 -> Financing share | D107: ='User Interface'!D141 -> 0.75 | F107: 2020 | G107: 2025 | H107: 2030 | I107: =Results!$I$6 -> 2025
B108: ='User Interface'!B142 -> Interest rate | D108: ='User Interface'!D142*(1+Sensitivity!I8)*(1+I108) -> 0.08 | F108: 0 | G108: 0 | H108: -0.25 | I108: =INDEX(F108:H108,MATCH(I107,F107:H107,0)) -> 0
B109: ='User Interface'!B143 -> Loan Tenor (years) | D109: =ROUNDUP('User Interface'!D143*(1+Sensitivity!J8)*(1+I109),0) -> 15 | F109: 0 | G109: 0 | H109: 0.33 | I109: =INDEX(F109:H109,MATCH(I107,F107:H107,0)) -> 0
B111: ='User Interface'!B145 -> Subordinate
B112: ='User Interface'!B146 -> Financing share | D112: ='User Interface'!D146 -> 0
B113: ='User Interface'!B147 -> Interest rate | D113: ='User Interface'!D147*(1+Sensitivity!L8) -> 0.15
B114: ='User Interface'!B148 -> Loan Tenor (years) | D114: ='User Interface'!D148*(1+Sensitivity!K8) -> 25
B115: ='User Interface'!B149 -> Simple WACC | D115: =(D99*D100+D107*D108+D112*D113) -> 0.09
B116: ='User Interface'!B150 -> Time variant WACC | D116: ='User Interface'!E150 -> 0.0908577257
B117: ='User Interface'!B151 -> Choice of WACC for NPV calculation | C117: ='User Interface'!C151 -> TRUE | D117: ='User Interface'!D151 -> Simple WACC
B120: ='User Interface'!B155 -> Exchange rate
C122: ='User Interface'!C157 -> Include | D122: ='User Interface'!D157 -> Percentage change
B123: ='User Interface'!B158 -> Exchange rate uncertainty | C123: ='User Interface'!C158 -> FALSE | D123: ='User Interface'!D158 -> -0.08
B127: ='User Interface'!B162 -> Cash reserves
B129: ='User Interface'!B164 -> Cash Reserve (% of CAPEX) | C129: ='User Interface'!C164 -> FALSE | D129: ='User Interface'!D164*C129 -> 0

Sheet Lists (hidden)
B1: =MID(CELL("filename",A1),1+FIND("]",CELL("filename",A1)),99) -> Lists
B3: Technologies | D3: Uncertainty | E3: No | F3: PPA tariff | G3: Monthly | H3: Yes | I3: Decreasing value | J3: Cost of Equity | K3: =ADDRESS(ROW('User Interface'!$D$132),COLUMN('User Interface'!$D$132),4,1,"User Interface") -> 'User Interface'!D132 | M3: LCOE | O3: CAPEX | Q3: Subsidy goalseek | S3: 2020
B4: =TRANSPOSE('Technical data'!$E$9:$H$9) -> Offshore wind Gujarat | D4: ='Technical data'!D28 -> P50 | E4: Yes | F4: User defined | G4: Annually | H4: No | I4: Straight line | J4: Senior Debt rate | K4: =ADDRESS(ROW('User Interface'!$D$142),COLUMN('User Interface'!$D$142),4,1,"User Interface") -> 'User Interface'!D142 | O4: OPEX | Q4: =ADDRESS(ROW('User Interface'!D111),COLUMN('User Interface'!D111),4,1,"User Interface") -> 'User Interface'!D111 | S4: 2025
B5: Offshore wind Tamil Nadu Site B | D5: ='Technical data'!D29 -> P75 | F5: No compensation | I5: Digit sum | J5: SNR Loan Tenure | K5: =ADDRESS(ROW('User Interface'!$D$143),COLUMN('User Interface'!$D$143),4,1,"User Interface") -> 'User Interface'!D143 | O5: WACC | Q5: =ADDRESS(ROW(Results!C11),COLUMN(Results!C11),4,1,"Results") -> Results!C11 | S5: 2030
B6: 0 | D6: ='Technical data'!D30 -> P90 | O6: Equity share
B7: 0 | D7: ='Technical data'!D31 -> P95 | O7: PPA tariff | Q7: Capacity goalseek
O8: Senior rate | Q8: =ADDRESS(ROW(Nom_cap),COLUMN(Nom_cap),4,1,"User Interface") -> 'User Interface'!D13
O9: Senior Tenor | Q9: =ADDRESS(ROW(Finance!$K$71),COLUMN(Finance!$K$71),4,1,"Finance") -> Finance!K71
O10: Cost of Equity
Q11: GBI goalseek
Q12: =ADDRESS(ROW('User Interface'!$D$115),COLUMN('User Interface'!$D$115),4,1,"User Interface") -> 'User Interface'!D115

Sheet Abbreviations (hidden)
B1: =MID(CELL("filename",A1),1+FIND("]",CELL("filename",A1)),99) -> Abbreviations
B4: AEP | C4: Annual electricty production
B5: CAPEX | C5: Capital Expenditures
B6: DSRA | C6: Debt-Service reserve account
B7: LCOE | C7: Levelized Cost of Energy
B8: NPV | C8: Net Present Value
B9: OPEX | C9: Operating Expenditures
B10: PPA | C10: Power Purchase Agreement
B11: PTC | C11: Production Tax Credit
B12: PV | C12: Present Value
B13: VAT | C13: Value-Added tax
B14: WACC | C14: Weighted Average Cost of Capital
